{"text_format":"1","workbook":"xlsx","n_sheets":23,"sheets":["FŐÖSSZESÍTŐ","Záradék","Összesítő","Felvonulási létesítmények","Zsaluzás és állványozás","Irtás, föld- és sziklamunka","Síkalapozás","Helyszíni beton és vasbeton mun","Előregyártott épületszerkezeti ","Falazás és egyéb kőműves munkák","Ácsmunka","Vakolás és rabicolás","Égéstermék elvezető berendezése","Szárazépítés","Tetőfedés","Aljzatkészítés, hideg- és meleg","Bádogozás","Asztalosszerkezetek elhelyezése","Lakatosszerkezetek elhelyezése","Felületképzés (festés, mázolás,","Szigetelés","Beltéri beépített berendezési ","Útburkolat készítése"],"not_rendered":{"charts":0,"images":0,"macros":0,"external_links":0,"defined_names":0,"comments":0,"pivot_tables":0},"unopened":[],"bounds":{"document_bytes":16777216,"sheet_cells":100000,"rows_first":2000,"rows_last":500,"rows_between":2000,"halvings":0,"cell_chars":16384,"cell_head_chars":4096},"cells_cut":0,"cells_raw":0,"read":"whole","date_system":"1900"}

{"sheet":"FŐÖSSZESÍTŐ","index":0,"n_rows":27,"n_cols":4,"rows_kept":27,"cut":false,"hidden":false,"merged":[[0,0,0,3],[1,0,1,3],[9,1,9,2],[2,0,2,2],[6,0,6,3],[19,2,19,3],[20,2,20,3],[26,2,26,3],[21,2,21,3],[22,2,22,3],[23,2,23,3]]}
["FŐÖSSZESÍTŐ"]
[]
["Név : SZOMBATHELYI EGYHÁZMEGYE     "]
["Cím : Szombathely, Berzsenyi tér 3.      ",null," Kelt:      2017. 05.20.     "]
["                                       ",null,"                                       "]
["A munka leírása:                       ",null,"                                       "]
["GYŐRI HITTUDOMÁNYI FŐISKOLA SZOMBATHELYI KÉPZÉSI KÖZPONT FELÚJÍTÁSA, ÁTALAKÍTÁSA "]
["Szombathely, Szily u.3-5.                                        "]
["                                                                              "]
["                                                                              ","Költségvetés főösszesítő"]
[]
["Támogatott munkák"]
["Megnevezés",null,"Anyagköltség","Díjköltség"]
["1. Építés"]
["2. Gépészeti szerelés"]
["3. Gázszerelés"]
["4. Villamos szerelés"]
[]
["1.1 Közvetlen önköltség összesen",null,{"$f":"C14+C15+C16+C17","v":0},{"$f":"D14+D15+D16+D17","v":0}]
["2.1 ÁFA vetítési alap",null,{"$f":"C19+D19","v":0}]
["2.2 Áfa",0.27,{"$f":"C20*0.27","v":0}]
[]
[null,"Összesen:",{"$f":"C20+C21","v":0}]
[]
[]
[]
[null,null,"Aláírás"]

{"sheet":"Záradék","index":1,"n_rows":25,"n_cols":4,"rows_kept":25,"cut":false,"hidden":false,"merged":[[19,2,19,3],[20,2,20,3],[3,0,3,2],[24,1,24,2],[7,0,7,3],[9,0,9,3],[14,0,14,3],[18,2,18,3]]}
[]
[]
[]
["Név : SZOMBATHELYI EGYHÁZMEGYE     "]
["Cím : Szombathely, Berzsenyi tér 3.      ",null," Kelt:      2017.  "]
["                                       ",null,"                                       "]
["A munka leírása:                       ",null,"                                       "]
["GYŐRI HITTUDOMÁNYI FŐISKOLA SZOMBATHELYI KÉPZÉSI KÖZPONT FELÚJÍTÁSA, ÁTALAKÍTÁSA "]
["Szombathely, Szily u.3-5.                                        "]
[]
[]
[]
["                                                                              "]
[]
["Költségvetés főösszesítő"]
["Megnevezés",null,"Anyagköltség","Díjköltség"]
["1. Építmény közvetlen költségei",null,{"$f":"Összesítő!B22","v":0},{"$f":"Összesítő!C22","v":0}]
["1.1 Közvetlen önköltség összesen",null,{"$f":"C17","v":0},{"$f":"D17","v":0}]
["2.1 ÁFA vetítési alap",null,{"$f":"C18+D18","v":0}]
["2.2 Áfa",0.27,{"$f":"C19*0.27","v":0}]
["3.  A munka ára",null,{"$f":"C19+C20","v":0}]
[]
[]
[]
[null,"Aláírás"]

{"sheet":"Összesítő","index":2,"n_rows":22,"n_cols":3,"rows_kept":22,"cut":false,"hidden":false,"merged":[]}
["Munkanem megnevezése","Anyag összege","Díj összege"]
["Felvonulási létesítmények",{"$f":"'Felvonulási létesítmények'!H12","v":0},{"$f":"'Felvonulási létesítmények'!I12","v":0}]
["Zsaluzás és állványozás",{"$f":"'Zsaluzás és állványozás'!H32","v":0},{"$f":"'Zsaluzás és állványozás'!I32","v":0}]
["Irtás, föld- és sziklamunka",{"$f":"'Irtás, föld- és sziklamunka'!H19","v":0},{"$f":"'Irtás, föld- és sziklamunka'!I19","v":0}]
["Síkalapozás",{"$f":"Síkalapozás!H8","v":0},{"$f":"Síkalapozás!I8","v":0}]
["Helyszíni beton és vasbeton munkák",{"$f":"'Helyszíni beton és vasbeton mun'!H48","v":0},{"$f":"'Helyszíni beton és vasbeton mun'!I48","v":0}]
["Előregyártott épületszerkezeti elem elhelyezése és szerelése",{"$f":"'Előregyártott épületszerkezeti '!G19","v":0},{"$f":"'Előregyártott épületszerkezeti '!H19","v":0}]
["Falazás és egyéb kőműves munkák",{"$f":"'Falazás és egyéb kőműves munkák'!H58","v":0},{"$f":"'Falazás és egyéb kőműves munkák'!I58","v":0}]
["Ácsmunka",{"$f":"Ácsmunka!H37","v":0},{"$f":"Ácsmunka!I37","v":0}]
["Vakolás és rabicolás",{"$f":"'Vakolás és rabicolás'!H74","v":0},{"$f":"'Vakolás és rabicolás'!I74","v":0}]
["Égéstermék elvezető berendezések",{"$f":"'Égéstermék elvezető berendezése'!H6","v":0},{"$f":"'Égéstermék elvezető berendezése'!I6","v":0}]
["Szárazépítés",{"$f":"Szárazépítés!H10","v":0},{"$f":"Szárazépítés!I10","v":0}]
["Tetőfedés",{"$f":"Tetőfedés!H16","v":0},{"$f":"Tetőfedés!I16","v":0}]
["Aljzatkészítés, hideg- és melegburkolatok készítése",{"$f":"'Aljzatkészítés, hideg- és meleg'!H51","v":0},{"$f":"'Aljzatkészítés, hideg- és meleg'!I51","v":0}]
["Bádogozás",{"$f":"Bádogozás!H57","v":0},{"$f":"Bádogozás!I57","v":0}]
["Asztalosszerkezetek elhelyezése",{"$f":"'Asztalosszerkezetek elhelyezése'!H100","v":0},{"$f":"'Asztalosszerkezetek elhelyezése'!I100","v":0}]
["Lakatosszerkezetek elhelyezése",{"$f":"'Lakatosszerkezetek elhelyezése'!H20","v":0},{"$f":"'Lakatosszerkezetek elhelyezése'!I20","v":0}]
["Felületképzés (festés, mázolás, tapétázás, korrózióvédelem)",{"$f":"'Felületképzés (festés, mázolás,'!H28","v":0},{"$f":"'Felületképzés (festés, mázolás,'!I28","v":0}]
["Szigetelés",{"$f":"Szigetelés!H32","v":0},{"$f":"Szigetelés!I32","v":0}]
["Beltéri beépített berendezési tárgyak elhelyezése",{"$f":"'Beltéri beépített berendezési '!H24","v":0},{"$f":"'Beltéri beépített berendezési '!I24","v":0}]
["Kőburkolat készítése",{"$f":"'Útburkolat készítése'!H13","v":0},{"$f":"'Útburkolat készítése'!I13","v":0}]
["Összesen:",{"$f":"SUM(B2:B21)","v":0},{"$f":"SUM(C2:C21)","v":0}]

{"sheet":"Felvonulási létesítmények","index":3,"n_rows":12,"n_cols":9,"rows_kept":12,"cut":false,"hidden":false,"merged":[]}
["Ssz.","Tételszám","Tétel szövege","Menny.","Egység","Anyag egységár","Díj egységre","Anyag összesen","Díj összesen"]
[1,"12-004-4.1-0220233","Vízellátás szövetbetétes gumitömlővel 1/2-3/4\" méretig Szövetbetétes víztömlő, 1 MPa 18 mm",30,"m",0,0,{"$f":"D2*F2","v":0},{"$f":"D2*G2","v":0}]
[]
[2,"12-004-4.2","Vízellátás szövetbetétes gumitömlővel sugárcső",1,"db",0,0,{"$f":"D4*F4","v":0},{"$f":"D4*G4","v":0}]
[]
[3,"12-005-8.1","Felvonulási csatlakozóhely főkapcsolóval világítási és erőátviteli mérőhely részére",1,"db",0,0,0,0]
[]
[4,"12-021-1.5-0211005","Ideiglenes kerítés, vízálló, műgyantával stabilizált faforgácslap (OSB) kerítés elhelyezése, kapukkal Vízálló faforgácslap (OSB), 2500x1250x15 mm méretű",53,"m",0,0,0,0]
[]
[5,"12-006-0","Projekt tábla elhelyezése",1,"db",0,0,0,0]
[]
[null,null,"Munkanem összesen:",null,null,null,null,{"$f":"SUM(H2:H11)","v":0},{"$f":"SUM(I2:I11)","v":0}]

{"sheet":"Zsaluzás és állványozás","index":4,"n_rows":32,"n_cols":9,"rows_kept":32,"cut":false,"hidden":false,"merged":[]}
["Ssz.","Tételszám","Tétel szövege","Menny.","Egység","Anyag egységár","Díj egységre","Anyag összesen","Díj összesen"]
[1,"15-004-001.1.2.1","Síklemez zsaluzása,alátámasztó állvánnyal, födémzsaluzattal, zsaluhéj alátámasztó állvánnyal, 3,0 m magasságig",34.520000000000003,"m2",0,0,{"$f":"D2*F2","v":0},{"$f":"D2*G2","v":0}]
[]
[2,"15.004.002.","Gerenda zsaluzása,20-60 cm oldalmagasság fölött,szerelt táblás zsaluzattal, alátámasztó állvánnyal, födémzsaluzattól függetlenül készítve, alátámasztó állvánnyal, 3,0 m magasságig",4.93,"m2",0,0,{"$f":"D4*F4","v":0},{"$f":"D4*G4","v":0}]
[]
["3","15-004-031.1","Koszorúzsaluzás, zsaluzattól függetlenül, pátkány nélkül",2.78,"m2","0","0",0,0]
[]
[4,"15-004-001","Síklemez zsaluzása,alátámasztó állvánnyal, födémzsaluzattal, zsaluhéj alátámasztó állvánnyal, 3,0 m magasságig,feltárás szerinti helyen",23,"m2",0,0,0,0]
[]
[5,"15-012-9","Kéményállvány készítésre födémre állítva szellőzőkémény bontásához",2,"db",0,0,0,0]
[null,null,"kN/m2 terhelhetőséggel, állványépítés MSZ és alkalmazástechnikai kézikönyv szerint, 6,01-12,00 m munkapadló magasság között,5 m2/db munkaszintig"]
[]
[6,"15-012-9","Kéményállvány készítésre födémre állítva meglévő téglakémények vakolatjavításához",5,"db",0,0,0,0]
[null,null,"kN/m2 terhelhetőséggel, állványépítés MSZ és alkalmazástechnikai kézikönyv szerint, 6,01-12,00 m munkapadló magasság között"]
[]
[7,"15-012-21.2-0023003","Homlokzati keretállványok, fém keretvázból, szintenkénti pallóterítéssel, korláttal, lábdeszkával, 0,75-1,20 m padlószélességgel, munkapadló távolság 2,50 m, 2,00 kN/m2 terhelhetőséggel, állványépítés MSZ és alkalmazástechnikai kézikönyv szerint,",1130,"m2",0,0,0,0]
[null,null,"6,01-12,00 m munkapadló magasság között KRAUSE Stabilo homlokzati keretállvány 0,75 m padlószélességgel, 6,01-12,00 m munkapadló magasság között"]
[]
[8,"15-012-0012.","Homlokzati csőállványok, fém keretvázból, szintenkénti pallóterítéssel, korláttal, lábdeszkával, 0,60-0,90 m padlószélességgel, munkapadló távolság 2,00 m, 2,00 kN/m2 terhelhetőséggel, állványépítés MSZ és alkalmazástechnikai kézikönyv szerint,",131,"m2",0,0,0,0]
[null,null,"szomszéd épület padlásfödémére állítva, mint munkaállvány"]
[]
[9,null,"Homlokzati állvány feljárója ",48,"fm",0,0,0,0]
[]
[10,"15-012-25.1","Védőfüggöny szerelése állványszerkezetre, műanyag hálóból",1130,"m2",0,0,0,0]
[]
[11,"15-017-1.1","Pallóterítés meglévő állványzatra ",15,"m2",0,0,0,0]
[]
[12,"15-006-0","Biztonsági dúcolat vb szerkezetek bontásához",8,"m2",0,0,0,0]
[]
[13,"15-017-0","Védőburkolat építése 10 mm-es OSB lapból kapubejárónál",47,"m2",0,null,0,0]
[]
[null,null,"Munkanem összesen:",null,null,null,null,{"$f":"SUM(H2:H31)","v":0},{"$f":"SUM(I2:I31)","v":0}]

{"sheet":"Irtás, föld- és sziklamunka","index":5,"n_rows":19,"n_cols":9,"rows_kept":19,"cut":false,"hidden":false,"merged":[]}
["Ssz.","Tételszám","Tétel szövege","Menny.","Egység","Anyag egységár","Díj egységre","Anyag összesen","Díj összesen"]
[1,"21-003-5.2.1.3.1","Munkaárok földkiemelése közművesített területen, kézi erővel, bármely konzisztenciájú talajban, dúcolt árokból, 3,0 m árokszélességig, talajosztály: IV. 2,0  m mélységig",9.3000000000000007,"m3",0,0,{"$f":"D2*F2","v":0},{"$f":"D2*G2","v":0}]
[]
[2,"21-004-5.1.2.1","Tükörkészítés tömörítés nélkül, sík felületen gépi erővel, kiegészítő kézi erővel talajosztály: V-VI.",6.8,"m3",0,0,{"$f":"D4*F4","v":0},{"$f":"D4*G4","v":0}]
[]
[3,"21-004-2.2","Talajjavító réteg készítése vonalas létesítményeknél, 3,00 m szélesség felett, osztályozatlan kavicsból.természetes szemmegoszlású kavics, THK 0/32 P-TT",6.05,"m3",0,0,0,0]
[]
[4,"21-008-2.2.3","Tömörítés bármely tömörítési osztályban gépi erővel, kis felületen, tömörségi fok: 95%",30.5,"m2",0,0,0,0]
[]
[5,"21-011-7.2","Feltöltések alap- és lábazati falak közé és alagsori vagy alá nem pincézett földszinti padozatok alá, az anyag szétterítésével, mozgatásával, kézi döngöléssel, osztályozatlan kavicsból Természetes szemmegoszlású kavics, THK  0/32 Q-TT, Püspökmolnári",4.5999999999999996,"m3",0,0,0,0]
[null,null,null,null,null,null,null,0,0]
[]
[6,"21-011-11.6","Építési törmelék konténeres elszállítása, lerakása, lerakóhelyi díjjal, 8,0 m3-es konténerbe",22,"db",0,0,0,0]
[]
[7,"21-011-12","Munkahelyi depóniából építési törmelék konténerbe rakása,  kézi erővel, önálló munka esetén elszámolva, konténer szállítás nélkül",176,"m3",0,0,0,0]
[]
[8,null,"Régészeti felügyelet földmunkáknál ",2,"alk.",0,0,0,0]
[]
[null,null,"Munkanem összesen:",null,null,null,null,{"$f":"SUM(H2:H18)","v":0},{"$f":"SUM(I2:I18)","v":0}]

{"sheet":"Síkalapozás","index":6,"n_rows":8,"n_cols":9,"rows_kept":8,"cut":false,"hidden":false,"merged":[]}
["Ssz.","Tételszám","Tétel szövege","Menny.","Egység","Anyag egységár","Díj egységre","Anyag összesen","Díj összesen"]
[1,"23-003-2-0232210","Vasbeton sáv-, talp- lemezalap készítése szivattyús technológiával, .....minőségű betonból C20/25 - X0v(H) képlékeny kavicsbeton keverék CEM 32,5 pc. Dmax = 16 mm, m = 6,6 finomsági modulussal",2.1,"m3",0,0,{"$f":"D2*F2","v":0},{"$f":"D2*G2","v":0}]
[]
[2,"23-003-","Beton pilléralap készítése szivattyús technológiával, .....minőségű betonból C20/25 - X0v(H) képlékeny kavicsbeton keverék CEM 32,5 pc. Dmax = 16 mm, m = 6,6 finomsági modulussal",4.7,"m3",0,0,{"$f":"D4*F4","v":0},{"$f":"D4*G4","v":0}]
[]
[3,"23-000-2","Beton-, sáv-, gerenda- vagy kőbetonalapok előirányzat",1,"m3",0,null,0,0]
[]
[null,null,"Munkanem összesen:",null,null,null,null,{"$f":"ROUND(SUM(H2:H7),0)","v":0},{"$f":"ROUND(SUM(I2:I7),0)","v":0}]

{"sheet":"Helyszíni beton és vasbeton mun","index":7,"n_rows":48,"n_cols":9,"rows_kept":48,"cut":false,"hidden":false,"merged":[]}
["Ssz.","Tételszám","Tétel szövege","Menny.","Egység","Anyag egységár","Díj egységre","Anyag összesen","Díj összesen"]
[1,"31-000-1.2.2","Vasbeton födémlemez bontása 15-25 cm vastagság között, C20/25 - C25/30 betonminőség között",1.54,"m3",0,0,{"$f":"D2*F2","v":0},{"$f":"D2*G2","v":0}]
[]
[2,"31-000-8.2.2","Sík vagy bordás vasbeton lemez bontása, 12 cm vastagság felett, C20/25 - C25/30 betonminőség között",1.8,"m3",0,0,{"$f":"D4*F4","v":0},{"$f":"D4*G4","v":0}]
[]
[3,"31-000-12.3","Födémfeltöltések bontása, nehéz feltöltések bontása homokból, kavicsból,  testsűrűség 1500 kg/m3 felett",8.5,"m3",0,0,0,0]
[]
[4,"31-000-13.2","Beton aljzatok, járdák bontása 10 cm vastagságig, kavicsbetonból, salakbetonból",325,"m2",0,0,0,0]
[]
[5,"31-000-13.","4 cm vastag bitumenezett térbeton bontása 10 cm vastagságig, ",57,"m2",0,0,0,0]
[]
[6,"31-001-1.2.1-0220955","Betonacél helyszíni szerelése  függőleges vagy vízszintes tartószerkezetbe, bordás betonacélból, 4-10 mm átmérő között FERALPI hidegen húzott bordás betonacél, 6 m-es tekercsben, BHB55.50  8 mm",0.6,"t",0,null,0,0]
[]
[7,"31-001-1.2.1-0220956","Betonacél helyszíni szerelése  függőleges vagy vízszintes tartószerkezetbe, bordás betonacélból, 4-10 mm átmérő között FERALPI hidegen húzott bordás betonacél, 6 m-es szálban, BHB55.50  10 mm",0.03,"t",0,0,0,0]
[]
[8,"31-001-1.2.1-0220986","Betonacél helyszíni szerelése  függőleges vagy vízszintes tartószerkezetbe, bordás betonacélból, 4-10 mm átmérő között FERALPI hidegen húzott bordás betonacél, 6 m-es szálban, BHB55.50  10 mm",1.4E-2,"t",0,0,0,0]
[]
[9,"31-001-1.2.2-0220621","Betonacél helyszíni szerelése  függőleges vagy vízszintes tartószerkezetbe, bordás betonacélból, 12-20 mm átmérő között Bordás betonacél, szálban, B 500  12 mm",0.74,"t",0,0,0,0]
[]
[10,"31-001-1.2.2-0220668","Betonacél helyszíni szerelése  függőleges vagy vízszintes tartószerkezetbe, bordás betonacélból, 12-20 mm átmérő között Bordás betonacél, szálban, B60.50  16 mm",6.5000000000000002E-2,"t",0,0,0,0]
[]
[11,"31-001-2-0452004","Hegesztett betonacél háló szerelése tartószerkezetbe FERALPI 8K1515 építési síkháló; 5,00 x 2,15 m; 150 x 150 mm osztással Ø 8,00 / 8,00 C15 minőségű",0.23,"t",0,0,0,0]
[]
[12,"31-001-3.1.1","Távtartók elhelyezése vasbeton szerkezetben, műanyagból,vasbeton lemezben hegesztett háló vagy hálós vasalás alá. Műanyag távtartó U-bak 20 mm-es",34.520000000000003,"m2",0,0,0,0]
[]
[13,"31-021-1.3.2-0232210","Vasbeton gerenda készítése,  X0v(H), XC1, XC2, XC3 környezeti osztályú,  kissé képlékeny vagy képlékeny konzisztenciájú betonból, betonszivattyús technológiával, vibrátoros tömörítéssel, 401-750 cm2 keresztmetszet között C20/25 - X0v(H) képlékeny",0.92,"m3",0,0,0,0]
[null,null,"kavicsbeton keverék CEM 32,5 pc. Dmax = 16 mm, m = 6,6 finomsági modulussal"]
[]
[14,"31-021-2.3.1.-0230410","Vasbeton koszorú  készítése,, X0v(H), XC1, XC2, XC3 környezeti osztályú, kissé képlékeny vagy képlékeny konzisztenciájú betonból, betonszivattyús technológiával, vibrátoros tömörítéssel, 400 cm2 keresztmetszetig C20/25 -",0.5,"m3",0,0,0,0]
[null,null,"X0v(H) kissé képlékeny kavicsbeton keverék CEM 52,5 pc. Dmax = 24 mm, m = 6,4 finomsági modulussal"]
[]
[15,"31-021-4.2.1.-0231210","Sík vagy alulbordás vasbeton lemez készítése,15°-os hajlásszögig, X0v (H), XC1, XC2, XC3 környezeti osztályú, kissé képlékeny vagy képlékeny konzisztenciájú betonból, darus-konténeres technológiával, vibrátoros tömörítéssel, 12 cm vastagságig  C20/25 ",4.1399999999999997,"m3",0,0,0,0]
[null,null,"XC1 k képlékeny kavicsbeton keverék CEM 42,5 pc. Dmax = 16 mm, m = 6,6 finomsági modulussal"]
[]
[16,"31-021-4.3.2.-0230810","Sík vagy alulbordás vasbeton lemez készítése,15°-os hajlásszögig, X0v (H), XC1, XC2, XC3 környezeti osztályú, kissé képlékeny vagy képlékeny konzisztenciájú betonból, betonszivattyús technológiával, vibrátoros tömörítéssel, 12 cm vastagság felett  C20/25 ",2.78,"m3",0,0,0,0]
[null,null,"X0v(H) kképlékeny kavicsbeton keverék CEM 52,5 pc. Dmax = 32 mm, m = 6,8 finomsági modulussal"]
[]
[17,"31-021-4.3.2.-0230810","Sík vagy alulbordás vasbeton lemez készítése,15°-os hajlásszögig, X0v (H), XC1, XC2, XC3 környezeti osztályú, kissé képlékeny vagy képlékeny konzisztenciájú betonból, betonszivattyús technológiával, vibrátoros tömörítéssel, 12 cm vastagság felett  C20/25 ",4.8,"m3",0,0,0,0]
[null,null,"X0v(H) kképlékeny kavicsbeton keverék CEM 52,5 pc. Dmax = 32 mm, m = 6,8 finomsági modulussal  Előirányzat feltárás szerint"]
[]
[18,"31-030-11.3.1.1.1-0112410","Beton aljzat készítése helyszínen kevert betonból, kézi továbbítással és bedolgozással, merev aljzatra, kavicsbetonból, C 8/10 - C 16/20 kissé képlékeny konzisztenciájú betonból, a felület fasimítóval eldolgozva, 6 cm vastagságig C12/15 - XN(H) kissé",39.799999999999997,"m3",0,0,0,0]
[null,null,"képlékeny kavicsbeton keverék CEM 32,5 pc. Dmax = 24 mm, m = 6,8 finomsági modulussal"]
[]
[19,"31-090-2.4-0130710","Betonaljzatok és betonanyagú burkolatok foltszerű felvésése, javítása, aljzatbeton javítása kavicsbetonból 6 cm vastagságban, fasimítóval eldolgozva C20/25 - X0b(H) kissé képlékeny kavicsbeton keverék CEM 52,5 pc. Dmax = 32 mm, m = 7,1 finomsági",30,"m2",0,null,0,0]
[null,null,"modulussal Előirányzat"]
[]
[20,"31-03000","Beton padlóburkolat: 2 cm vastagságban, meglévő aljzatra, fa- vagy vassimítóval, cementsimítás vízszintes felületen Hs60-c, simító cementhabarcs előirányzat",30,"m2",0,null,0,0]
[null,null,"Munkanem összesen:",null,null,null,null,{"$f":"SUM(H2:H47)","v":0},{"$f":"SUM(I2:I47)","v":0}]

{"sheet":"Előregyártott épületszerkezeti ","index":8,"n_rows":19,"n_cols":9,"rows_kept":19,"cut":false,"hidden":false,"merged":[]}
["Ssz.","Tételszám","Tétel szövege","Menny.","Egység","Anyag egységár","Díj egységre","Anyag összesen","Díj összesen"]
[1,"32-000-1","Vízszintes tartószerkezeti elem roncsolásos bontása (alátámasztó szerkezettel) törmelékre, kézi erővel (áthidaló, födémgerenda, födémpalló stb.)",1.2,"m3",0,0,{"$f":"+K26+H2:H2:H10","v":0},{"$f":"D2*G2","v":0}]
[]
[2,"32-002-001.1.1-0120011","Előregyártott nyílásáthidalók, kiváltók elhelyezése tartószerkezetre",4,"db",0,0,{"$f":"D4*F4","v":0},{"$f":"D4*G4","v":0}]
[null,null,"Előregyártott azonnal terhelhető nyílásáthidaló elhelyezése (válaszfal áthidalók is), tartószerkezetre, csomóponti kötés nélkül,falazat szélességű áthidaló elemekből vagy több elem egymás mellé sorolásával, a teherhordó falváll előkészítésével,kiegészítő hőszigetelés elhelyezése nélkül,"]
[null,null,"0,10 t/db tömegig,"]
[null,null,"égetett agyag-kerámia köpenyes nyílásáthidaló, POROTHERM A-10 kerámia burkolatú nyílásáthidaló, 1,25 m"]
[]
[3,"32-002-001.1.1-0120012","Előregyártott nyílásáthidalók, kiváltók elhelyezése tartószerkezetre",4,"db",0,0,0,0]
[null,null,"Előregyártott azonnal terhelhető nyílásáthidaló elhelyezése (válaszfal áthidalók is), tartószerkezetre, csomóponti kötés nélkül,falazat szélességű áthidaló elemekből vagy több elem egymás mellé sorolásával, a teherhordó falváll előkészítésével,kiegészítő hőszigetelés elhelyezése nélkül,"]
[null,null,"0,10 t/db tömegig,"]
[null,null,"égetett agyag-kerámia köpenyes nyílásáthidaló, POROTHERM A-10 kerámia burkolatú nyílásáthidaló, 1,50 m"]
[]
[4,"32-002-001.1.1-0112062","Előregyártott nyílásáthidalók, kiváltók elhelyezése tartószerkezetre",6,"db",0,0,0,0]
[null,null,"Előregyártott azonnal terhelhető nyílásáthidaló elhelyezése (válaszfal áthidalók is), tartószerkezetre, csomóponti kötés nélkül,falazat szélességű áthidaló elemekből vagy több elem egymás mellé sorolásával, a teherhordó falváll előkészítésével,kiegészítő hőszigetelés elhelyezése nélkül,"]
[null,null,"0,10 t/db tömegig,"]
[null,null,"égetett agyag-kerámia köpenyes nyílásáthidaló, POROTHERM A-12 kerámia burkolatú nyílásáthidaló, 1,50 m"]
[]
[null,null,"Munkanem összesen:",null,null,null,null,{"$f":"SUM(H2:H18)","v":0},{"$f":"SUM(I2:I18)","v":0}]

{"sheet":"Falazás és egyéb kőműves munkák","index":9,"n_rows":58,"n_cols":9,"rows_kept":58,"cut":false,"hidden":false,"merged":[]}
["Ssz.","Tételszám","Tétel szövege","Menny.","Egység","Anyag egységár","Díj egységre","Anyag összesen","Díj összesen"]
[1,"33-000-1.1.1.1.2","Teherhordó és kitöltő falazat bontása, égetett agyag-kerámia termékekből, kisméretű, mészhomok, magasított vagy nagyméretű téglából, bármilyen falvastagsággal, falazó, meszes cementhabarcsból",9.23,"m3",0,0,{"$f":"D2*F2","v":0},{"$f":"D2*G2","v":0}]
[]
[2,"33-000-21.1.1.1.1.1","Válaszfal bontása, égetett agyag-kerámia termékekből, erősítő pillérrel vagy erősítő pillér nélkül falazva, kisméretű, mészhomok, magasított vagy nagyméretű téglából, 15 cm vastagságig, falazó, cementes mészhabarcsból falazva",198.6,"m2",0,0,{"$f":"D4*F4","v":0},{"$f":"D4*G4","v":0}]
[]
[3,"33-000-31.1.1","Nyílásbontás, égetett-agyag kerámia teherhordó, tömör téglafalban",11.9,"m3",0,0,0,0]
[]
[4,"33-000-32.1","Nyílásbontás, bármilyen égetett kerámia válaszfalban, 12 cm vastagságig",3.6,"m2",0,0,0,0]
[]
[5,"33-000-61.1","Csorbázatvésés, 15 cm szélességig",30.8,"m",0,0,0,0]
[]
[6,"33-000-61.4","Csorbázatvésés, 39-51 cm szélesség között",39.200000000000003,"m",0,0,0,0]
[]
[7,"33-000-71.1","Téglatisztítás, kisméretű vagy nagyméretű tömör tégla",5,"1000 db",0,0,0,0]
[]
[8,"33-001-1.1.2.4.1.2.2-2017561","Teherhordó és kitöltő falazat készítése, égetett agyag-kerámia termékekből, nútféderes elemekből, 380 mm falvastagságban, 380x250x238 vagy 375×250×238 mm-es méretű kézi falazóblokkból, káva elem és feles káva elem felhasználásával, falazó, meszes",38.9,"m2",0,0,0,0]
[null,null,"cementhabarcsba vagy hőszigetelő falazóhabarcsba falazva POROTHERM 38 K nútféderes kézi falazóblokk, 380x250x238 mm, TM hőszigetelő falazóhabarcs"]
[]
[9,"33-000-061","Csorbázatvésés 15 cm szélességig",24,"fm",0,0,0,0]
[]
[10,"33-000-061","Csorbázatvésés 45cm szélességig",19,"fm",0,0,0,0]
[]
[11,"33-000-061","Csorbázatvésés 64 cm szélességig",23,"fm",0,0,0,0]
[]
[12,"33-063-3.2.5","Horonyvésés, téglafalban, 50,01-100,00 cm2 keresztmetszet között",48,"m",0,0,0,0]
[]
[13,"33-063-3.2.6","Horonyvésés, téglafalban, többlet minden további 50 cm2 keresztmetszetenként",192,"m",0,0,0,0]
[]
[14,"33-063-21.1.2","Fészekvésés, téglafalban, 0,0151-0,030 m3 között",4,"db",0,0,0,0]
[]
[15,"33-091-1.1.1-2110002","Teherhordó és kitöltő falazat, égetett agyag-kerámia termékekből, nyílásbefalazás, nyílásszűkítés vagy kisebb falpótlások, 250 mm és ennél vastagabb falban csorbázatvéséssel, nyílásbefalazás, nyílásszűkítés vagy kisebb falpótlások, Kisméretű tömör tégla",10.130000000000001,"m3",0,0,0,0]
[null,null,"250x120x65 mm I.o. M 1 (Hf10-mc) falazó, cementes mészhabarcs"]
[]
[16,"33-091-2.2.1-2110002","Teherhordó és kitöltő falazat, égetett agyag-kerámia termékekből, tokok körülfalazása bontott nyílásban, 380 mm vastag falban, 1,5 tégla vastag falban Kisméretű tömör tégla 250x120x65 mm I.o. M 1 (Hf10-mc) falazó, cementes mészhabarcs",15.4,"m",0,0,0,0]
[]
[17,"33-091-4.1.1-2110002","Teherhordó és kitöltő falazat, égetett agyag-kerámia termékekből, meglévő falazati hiányosságok pótlása, falazat pótlása, 0,01 m3-ig Kisméretű tömör tégla 250x120x65 mm I.o. M 1 (Hf10-mc) falazó, cementes mészhabarcs előirányzat",30,"db",0,0,0,0]
[]
[18,"33-011-1.1.2.1.2.1.2-2132106","Válaszfal építése, égetett agyag-kerámia termékekből, nútféderes elemekből, 100 mm falvastagságban, 500x238x100 mm-es méretű válaszfallapból, falazó, meszes cementhabarcsba falazva POROTHERM 10 N+F válaszfallap, 500x238x100 mm, M 2,5 (Hf30-cm) falazó,",172,"m2",0,null,0,0]
[null,null,"meszes cementhabarcs"]
[]
[19,"33-091-","Teherhordó és kitöltő falazat, égetett agyag-kerámia termékekből, kifalazások csorbázatok kifalazása, kisméretű téglából, válaszfal  szélességben bontott tömör tömör tégla 250x120x65 mm I.o. M 1 (Hf10-mc) falazó, cementes mészhabarcs",63,"m",0,0,0,0]
[]
[20,"33-091-8.4.3-2110002","Teherhordó és kitöltő falazat, égetett agyag-kerámia termékekből, kifalazások csorbázatok kifalazása, kisméretű téglából, 30,01-51,00 cm szélesség között Kisméretű tömör tégla 250x120x65 mm I.o. M 1 (Hf10-mc) falazó, cementes mészhabarcs",10.8,"m",0,0,0,0]
[]
[21,"33-091","Válaszfal, égetett agyag-kerámia termékekből,  nyílásbefalazás, nyílásszűkítés vagy kisebb falpótlások, 12 cm vastagsággal, tömör kisméretű téglából, falazó, cementes mészhabarcsból falazva Kisméretű",2.1,"m2",0,0,0,0]
[null,null,"tömör tégla 250x120x65 mm I.o. M 1 (Hf10-mc) falazó, cementes mészhabarcs"]
[]
[22,"33-091-21.1.1-3110002","Boltozatok, födémáttörések helyreállítása, 0,1 m2 felületig, tégla szerkezetű födémben Kisméretű tömör tégla 250x120x65 mm I.o. M 2,5 (Hf30-cm) falazó, meszes cementhabarcs",5,"db",0,0,0,0]
[]
[23,"33-091-8.3.1-1110003","Teherhordó és kitöltő falazat, égetett agyag-kerámia termékekből, kifalazások párkány kifalazása, öt sor téglából, horonyvéséssel Kisméretű tömör tégla 250x120x65 mm I.o. M 1 (Hf10-mc) falazó, cementes mészhabarcs",2,"m",0,0,0,0]
[]
[24,"33-000","Cserépfedésű kerítésfal visszabontása 5 téglasorig",12.8,"fm",0,0,0,0]
[]
[25,"33-000","Kéményfef javítása kifagyott téglák pótlásával",5,"db",0,0,0,0]
[26,"33-000","Faláttörés 64 cm vtg falban 20/20 cm max keresztmetszettel, légbeszíváshoz, homlokzat színével azonos külső takaróráccsal",2,"db",0,0,0,0]
[]
[]
[null,null,"Munkanem összesen:",null,null,null,null,{"$f":"ROUND(SUM(H2:H57),0)","v":0},{"$f":"ROUND(SUM(I2:I57),0)","v":0}]

{"sheet":"Ácsmunka","index":10,"n_rows":37,"n_cols":9,"rows_kept":37,"cut":false,"hidden":false,"merged":[]}
["Ssz.","Tételszám","Tétel szövege","Menny.","Egység","Anyag egységár","Díj egységre","Anyag összesen","Díj összesen"]
[1,"35-000-1.2","Fa tetőszerkezet bontása 0,036-0,070 m3/m2 famennyiség között /déli toldalék és Szily 3. szarufák",326,"m2",0,0,{"$f":"D2*F2","v":0},{"$f":"D2*G2","v":0}]
[]
[2,"35-000-2.2","Tetőlécezés bontása bármely kettős cserépfedés alatt",698,"m2",0,0,{"$f":"D4*F4","v":0},{"$f":"D4*G4","v":0}]
[]
[3,"35-000-4","Tetődeszkázat bontása",124,"m2",0,0,0,0]
[]
[4,"35-001-1.6-0680041","Fa tetőszerkezetek bármely rendszerben faragott (fűrészelt) fából, 0,043-0,050 m3/m2 bedolgozott famennyiség között Fűrészelt gerenda 150x200-300x300 mm 3-6.5 m I.o./Szily 3. szarufacsere, déli toldás/",314,"m2",0,0,0,0]
[]
[5,"35-001-","Fa tetőszerkezetek bármely rendszerben faragott (fűrészelt) fából, 0,043-0,050 m3/m2 bedolgozott famennyiség között, gyalult látszó faszerkezetek, fenyő lazúrozott felülettel 150x200-300x300 mm 3-6.5 m I.o./fedett gk tároló",80,"m2",0,0,0,0]
[]
[6,"35- 002","Bitumenes alátétlemez-terítés és felerősítés 10 cm átfedéssel deszkázatra ",159,"m2",null,null,0,0]
[]
[7,"35-002-3-0113023","Belső oldali párafékező/párazáró fólia terítése 15 cm-es átfedéssel TYVEK VCL belső oldali , páraszabályozó tetőfólia, 180 g/m2, Sd=2m, Cikkszám: TYVVCL",649,"m2",0,0,0,0]
[]
[8,"35-002","Szellőzőszőnyeg: vízelvezető, páraáteresztő, kopogóhanggátló alátéthéjazat deszkázatra, fémlemezfedés alá,  15 cm-es átfedéssel TYVEK METAL 350 gr/m2",39,"m2",0,0,0,0]
[]
[9,"35-003-1.2-0410024","Tetőlécezés kettős hódfarkú cserépfedés alá Fenyő tetőléc 3-6,5 m 30x50 mm",649,"m2",0,0,0,0]
[]
[10,"35-003-1.1-0410024","Tetőlécezés cserepes lemez fedés alá Fenyő tetőléc 3-6,5 m 25x50 mm",80,"m2",0,0,0,0]
[]
[11,"35-003-1.6","Tetőlécezés tetőfelület ellenlécezésének elkészítése",740,"m",0,0,0,0]
[]
[12,"35-003-3-0410051","Gerincléc elhelyezése gerincléctartóra, taréjgerinc- és élgerincképzésnél Tetőléc 2-6.5 m hosszú 30/32x48/50 mm",97,"m",0,0,0,0]
[]
[13,"35-004-1.1","Deszkázás bádogfedés alá",39,"m2",0,0,0,0]
[]
[14,"35-004-1.2","Deszkázás ereszdeszkázás, nádazás, bádogozás vagy ereszlemez alá",124,"m2",0,0,0,0]
[]
[15,"35-080-4.1-0680041","Szelemen, szarufa, lécezés cseréje; szelemenek, székoszlopok, váltó- és fiókgerendák Fűrészelt gerenda 150x200-300x300 mm 3-6.5 m I.o. Előirányzat",1.2,"fam3",0,0,0,0]
[]
[16,"35-080-4.2-0310010","Szelemen, szarufa, lécezés cseréje; szarufák Lucfenyő fűrészelt gerenda 120x150 mm-es",0.8,"fam3",0,0,0,0]
[]
[17,"35-011-1.3.1-0211271","Faanyag gomba és rovarkártevő elleni megelőző, egyidejűleg égéskésleltető védelme mázolási technológiával felhordott anyaggal KEMIKÁL TETOL FB égéskésleltető, gomba- és rovarkárosítás elleni, faanyagvédő szer",310,"m2",0,0,0,0]
[]
[]
[null,null,"Munkanem összesen:",null,null,null,null,{"$f":"SUM(H2:H36)","v":0},{"$f":"SUM(I2:I36)","v":0}]

{"sheet":"Vakolás és rabicolás","index":11,"n_rows":74,"n_cols":9,"rows_kept":74,"cut":false,"hidden":false,"merged":[]}
["Ssz.","Tételszám","Tétel szövege","Menny.","Egység","Anyag egységár","Díj egységre","Anyag összesen","Díj összesen"]
[1,"36-000-1.3","Vakolat leverése homlokzatról, 2,5 cm vastagságig",185,"m2",0,0,{"$f":"D2*F2","v":0},{"$f":"D2*G2","v":0}]
[]
[2,"36-000-1.3","Vakolat leverése  kerítésről 2,5 cm vastagságig",198,"m2",0,0,{"$f":"D4*F4","v":0},{"$f":"D4*G4","v":0}]
[]
[3,"36-000-6","Felülfizetés minden további 1 cm vtg. vakolat leveréséért oldalfalon, és nutázott felületen",200,"m2",0,0,0,0]
[]
[4,"36-000-1.1.1","Vakolat leverése oldalfalról vagy mennyezetről 1,5 cm vastagságig falazó, cementes mészhabarcs előirányzat",80,"m2",0,0,0,0]
[]
[5,"36-000-6","Felülfizetés minden további 1 cm vtg. vakolat leveréséért oldalfalon, mennyezeten, vagy fej felett ferde felületen, falazó, cementes mészhabarcs illetve falazó, meszes cementhabarcs",80,"m2",0,0,0,0]
[]
[6,"36-000-1.4","Vakolat leverése lábazati cementvakolat 5 cm vastagságig",5.2,"m2",0,0,0,0]
[]
[7,"36-000-6","Felülfizetés minden további 1 cm vtg. vakolat leveréséért oldalfalon, mennyezeten, vagy fej felett ferde felületen, falazó, cementes mészhabarcs illetve falazó, meszes cementhabarcs",5.2,"m2",0,0,0,0]
[]
[8,"36-000-18","Téglafelület fugáinak tisztítása 2 cm mélységben",463,"m2",0,0,0,0]
[]
[9,"36-002-11.1-0415912","Tapadóhíd képzése gyári zsákos gúzanyaggal, kézi erővel Baumit Előfröcskölő 4 mm, Cikkszám: 151603",463,"m2",0,0,0,0]
[]
[10,"36-003","WTA vakolatrendszer belső térben 020-021-022 helyiségekben",17.5,"m2",0,0,0,0]
[]
[9,"36-003-1.1.1.2.1-0415935","Oldalfalvakolat készítése, kézi felhordással, zsákos kiszerelésű szárazhabarcsból, sima, könnyített mész-cement vakolat, 1 cm vastagságban Baumit Könnyű Alapvakolat, Cikkszám: 951802",542,"m2",0,0,0,0]
[]
[10,"36-003-1.1.1.2.2-0415935","Oldalfalvakolat készítése, kézi felhordással, zsákos kiszerelésű szárazhabarcsból, sima, könnyített mész-cement vakolat, többlet minden további 1 cm vastagságban Baumit Könnyű Alapvakolat, Cikkszám: 951802",75,"m2",0,0,0,0]
[]
[11,"36-003-2.1.1.2.1-0415935","Mennyezetvakolat készítése, kézi felhordással, zsákos kiszerelésű szárazhabarcsból, sima, könnyített mész-cement vakolat, 1 cm vastagságban Baumit Könnyű Alapvakolat, Cikkszám: 951802",33,"m2",0,0,0,0]
[]
[12,"36-003-11.1-0415926","Oldalfalvakolat vagy mennyezet vakolat simítása, előkevert gyári szárazhabarcsból, 5 mm vastagságig, kézi felhordással  (a gyártó által megadott kg/m2/mm rétegvastagsággal) Baumit Simító Vakolat, 3 kg/m2 2 mm rétegvastagságnál, Cikkszám: 156112",593,"m2",0,0,0,0]
[]
[13,"36-005-1.1.1.1.1-0414710","Homlokzati alapvakolat réteg készítése kézi felhordással, előkevert normál szárazhabarcsból, sima, normál mész-cement vakolat, 2 cm vastagságban simítva, Keim 9307 festéssel kerítésen LB-Knauf PRÉMIUM kézi alapvakolat, Cikkszám: 215011",196,"m2",0,0,0,0]
[null,null,null,null,null,null,null,0,0]
[14,"36-005-3","Vakolat simítása, ásványi  vékonyvakolattal,  4 mm vastagságig kézi felhordással Keim special fixatív, keim universalputz-fein, KEIM Special Fixatív (a gyártó által megadott kg/m2/mm rétegvastagsággal) külső, ",657,"m2",0,0,0,0]
[null,null,"vastagságban,"]
[]
[15,"36-005-3.1-0414720","Vakolat simítása, előkevert gyári szárazhabarcsból, vékonyvakolatok,homlokzatfestékek,  4 mm vastagságig kézi felhordással (a gyártó által megadott kg/m2/mm rétegvastagsággal) LB-Knauf SIMULTÁN külső, belső kvarchomokos símító 4 mm",593,"m2",0,0,0,0]
[null,null,null,null,null,null,null,0,0]
[16,"36-006-3.1.1.1-0414721","Hőszigetelő alapvakolatok simított felülettel; hőszigetelő vakolat készítése oldalfalon, zsákos kiszerelésű vakolattal, kézi felhordással, 2 cm vastagságban LB-Knauf ISOPUTZ/Hőszigetelő alapvakolat, Cikkszám: 512131",86,"m2",0,0,0,0]
[]
[17,"36-006-3.1.1.2-0414721","Hőszigetelő alapvakolatok simított felülettel; hőszigetelő vakolat készítése oldalfalon, zsákos kiszerelésű vakolattal, kézi felhordással, többlet minden további 1 cm vastagságban LB-Knauf ISOPUTZ/Hőszigetelő alapvakolat, Cikkszám: 512131",172,"m2",0,0,0,0]
[]
[18,"36-012-2.2.1.1-0414901","Szellőző, falszárító felújító vakolat készítése, erős (magas) só és nedvességtartalom esetén WTA rendszerben, kézi felhordással, szárazhabarcsból, felületelőkészítéssel (előfröcskölő, gúz),  alsó, felső vakolatréteggel, összesen 3 cm vastagságban",64,"m2",0,0,0,0]
[null,null,"LB-Knauf WTA Eurosan felújító alsóvakolat, kézi, Cikkszám: 551301, felsővakolattal, Cikkszám: 551401",null,null,null,null,0,0]
[]
[19,"36-012-2.2.1.2-0414902","Szellőző, falszárító felújító vakolat készítése, erős (magas) só és nedvességtartalom esetén WTA rendszerben, kézi felhordással, szárazhabarcsból, többlet 1 cm vastagságért LB-Knauf WTA EUROSAN OP/WTA Eurosan felújító felsővakolat, kézi, Cikkszám: 551401 nutolt fekület kialakításával",94,"m2",0,0,0,0]
[]
[19,"36-012-3-0415954","Falszárító, felújító vakolaton simítóvakolat készítése, 1 cm vastagságig Baumit Sanova Vakolat Finom Cikkszám: 353116",94,"m2",0,0,0,0]
[]
[20,"36-051-6.11-0191521","Kültéri vakolóprofilok elhelyezése, horganyzott acélból, alumíniumból, rozsdamentes acélból, PVC-ből, 6 - 23 mm vakolatvastagsághoz, pozitív sarkokra PROTEKTOR kültéri vakolóprofil pozitív sarokra 20 mm vakolathoz, horganyzott acél, Cikkszám: 1014",87,"m",0,0,0,0]
[]
[21,"36-090-1.1.1-0550040","Vakolatjavítás oldalfalon, tégla-, beton-, kőfelületen vagy építőlemezen, a meglazult, sérült vakolat előzetes leverésével, hiánypótlás 5% alatt gyári előkevert-mc, beltéri, vakoló cementes mészhabarcs mészpéppel, Előirányzat",30,"m2",0,0,0,0]
[]
[22,"36-090-1.2.1-0550090","Vakolatjavítás homlokzaton, a meglazult, sérült vakolat előzetes leverésével, durva, sima kivitelben, hiánypótlás 5% alatt CS I-W1 (Hvh10-mc) kültéri, vakoló cementes mészhabarcs mészpéppel",20,"m2",0,0,0,0]
[]
[23,"36-090-1.3.1.1-0550040","Vakolatjavítás mennyezeten, sík vasbeton téglabetétes, téglatálcás födémen, íves boltozaton  vagy építőelemen a meglazult, sérült vakolat leverésével, hiánypótlás 5% alatt Hvb8-mc, beltéri, vakoló cementes mészhabarcs mészpéppel, Előirányzat",20,"m2",0,0,0,0]
[]
[24,"36-090-2.1.1","Vakolatok pótlása, keskenyvakolatok pótlása oldalfalon, 10 cm szélességig előirányzat",650,"m",0,0,0,0]
[]
[25,"36-090-2.1.2","Vakolatok pótlása, keskenyvakolatok pótlása oldalfalon, 11-20 cm szélesség között előirányzat",200,"m",0,0,0,0]
[]
[26,"36-090-2.1.3","Vakolatok pótlása, keskenyvakolatok pótlása oldalfalon, 21-40 cm szélesség között előirányzott",60,"m",0,0,0,0]
[]
[27,"36-090-2.2.1","Vakolatok pótlása, keskenyvakolatok pótlása mennyezeten, 10 cm szélességig",50,"m",0,0,0,0]
[]
[28,"36-090-2.2.2","Vakolatok pótlása, keskenyvakolatok pótlása mennyezeten, 11-20 cm szélesség között",20,"m",0,0,0,0]
[]
[29,"36-090-3.2.2","Homlokzati párkányhúzás javítása, a meglazult, sérült vakolat leverésével, sarok és csatlakozás-összedolgozással, 31-50 cm kiterített szélességig, hiánypótlás 5-25% között",121,"m",0,0,0,0]
[]
[30,"36-090-3.3.2","Homlokzati párkányhúzás javítása, felpárkány, könyöklőpárkánya meglazult, sérült vakolat leverésével, sarok és csatlakozás-összedolgozással,51-70 cm kiterített szélességig, hiánypótlás 5-25% között",61.3,"m",0,0,{"$f":"D68*F68","v":0},{"$f":"D68*G68","v":0}]
[]
[31,"36-090-3.4.2","Homlokzati párkányhúzás javítása, a meglazult, sérült vakolat leverésével, sarok és csatlakozás-összedolgozással, 71-100 cm kiterített szélességig, hiánypótlás 5-25% között",117,"m",0,0,0,0]
[32,"36-090-0","Mész-cement kötésű homlokzati nyíláskeret és díszítő csík javítása 25 cm kiterített szélességig, sérült vakolat leverésével, sarok és csatlakozás-összedolgozással, hiánypótlás 5-25% között",135,"m",0,0,0,0]
[33,"36-090-5","Javítás, pótlás, egyes sérült téglák kivésése, pótlása előirányzat",50,"db",0,null,0,0]
[]
[null,null,"Munkanem összesen:",null,null,null,null,{"$f":"SUM(H2:H73)","v":0},{"$f":"SUM(I2:I73)","v":0}]

{"sheet":"Égéstermék elvezető berendezése","index":12,"n_rows":6,"n_cols":9,"rows_kept":6,"cut":false,"hidden":false,"merged":[]}
["Ssz.","Tételszám","Tétel szövege","Menny.","Egység","Anyag egységár","Díj egységre","Anyag összesen","Díj összesen"]
[null,"37-000","Falazott szellőzőkémény bontása épületen belül",10.8,"m3",0,0,{"$f":"D2*F2","v":0},{"$f":"D2*G2","v":0}]
[]
[null,"37-000","Falazott szellőzőkémény bontása épületen kívül",1.6,"m3",0,0,{"$f":"D4*F4","v":0},{"$f":"D4*G4","v":0}]
[]
[null,null,"Munkanem összesen:",null,null,null,null,{"$f":"H2+H4","v":0},{"$f":"I2+I4","v":0}]

{"sheet":"Szárazépítés","index":13,"n_rows":10,"n_cols":9,"rows_kept":10,"cut":false,"hidden":false,"merged":[]}
["Ssz.","Tételszám","Tétel szövege","Menny.","Egység","Anyag egységár","Díj egységre","Anyag összesen","Díj összesen"]
[1,"39-003-2.2.2.3.1-1120031","Szerelt gipszkarton álmennyezet azonos szintbeli fém vázszerkezetre (egysoros kivitel), csavarfejek és illesztések alapglettelve (Q2 minőségben),  nem látszó bordázattal, 40 cm bordatávolsággal (CD60/27), 10 m2 összefüggő felület felett, 1 rtg. tűzgátló",29.3,"m2",0,0,{"$f":"D2*F2","v":0},{"$f":"D2*G2","v":0}]
[null,null,"12,5 mm vtg. gipszkarton borítással RIGIPS tűzgátló építőlemez RF 15 mm, nóniusz függesztővel"]
[]
[2,"39-003-2.2.2.3.2-1120032","Szerelt gipszkarton álmennyezet azonos szintbeli fém vázszerkezetre (egysoros kivitel), csavarfejek és illesztések alapglettelve (Q2 minőségben),  nem látszó bordázattal, 40 cm bordatávolsággal (CD60/27), 10 m2 összefüggő felület felett, 1 rtg. tűzgátló",76,"m2",0,0,{"$f":"D5*F5","v":0},{"$f":"D5*G5","v":0}]
[null,null,"15 mm vtg. gipszkarton borítással RIGIPS tűzgátló építőlemez RF 15,0 mm, nóniusz függesztővel"]
[]
[3,"39-005-2.1.1","Előtétfal készítése,10 cm  üveggyapot szigetelőanyag kitöltéssel, párazáró fóliával1 rtg. gipszkarton borítással, 50 mm széles sűrített profilvázra szerelve RIGIPS 1 rtg. RF 15 gipszkarton",4,"m2",0,0,{"$f":"D8*F8","v":0},{"$f":"D8*G8","v":0}]
[]
[null,null,"Munkanem összesen:",null,null,null,null,{"$f":"H8+H5+H2","v":0},{"$f":"I8+I5+I2","v":0}]

{"sheet":"Tetőfedés","index":14,"n_rows":16,"n_cols":9,"rows_kept":16,"cut":false,"hidden":false,"merged":[]}
["Ssz.","Tételszám","Tétel szövege","Menny.","Egység","Anyag egységár","Díj egységre","Anyag összesen","Díj összesen"]
[1,"41-000-1","Cserépfedés bontása (bármely méretű)",698,"m2",0,0,{"$f":"D2*F2","v":0},{"$f":"D2*G2","v":0}]
[]
[2,"41-000","Hullámlemez fedés bontása ",25,"m2",0,0,{"$f":"D4*F4","v":0},{"$f":"D4*G4","v":0}]
[]
[3,"41-003-1.11.2-0115131","Kettősfedés húzott égetett agyag tetőcserepekkel, hódfarkú cseréppel, 41-45° tetőhajlásszög között, minden harmadik cserép rögzítésével TONDACH Hódfarkú kerekvágású kerámia alapcserép, 19x40 cm, téglavörös",649,"m2",0,0,0,0]
[]
[4,"41-021-2","Támfalak, kerítések lefedése hódfarkú cseréppel, négy sorral",17,"m",0,0,0,0]
[]
[5,"21-011-11.6","Építési törmelék konténeres elszállítása, lerakása, lerakóhelyi díjjal, 8,0 m3-es konténerbe",22,"db",0,0,0,0]
[]
[6,"21-011-12","Munkahelyi depóniából építési törmelék konténerbe rakása,  kézi erővel, önálló munka esetén elszámolva, konténer szállítás nélkül",56,"m3",0,0,0,0]
[]
[7,"41-000-0","Bontott pala elszállítása és megsemmisítése hivatosan kinevezett megsemmisítő telepen",0.05,"m3",0,0,0,0]
[]
[null,null,"Munkanem összesen:",null,null,null,null,{"$f":"SUM(H2:H15)","v":0},{"$f":"SUM(I2:I15)","v":0}]

{"sheet":"Aljzatkészítés, hideg- és meleg","index":15,"n_rows":51,"n_cols":9,"rows_kept":51,"cut":false,"hidden":false,"merged":[]}
["Ssz.","Tételszám","Tétel szövege","Menny.","Egység","Anyag egységár","Díj egységre","Anyag összesen","Díj összesen"]
[]
[1,"42-000-2.1","Lapburkolatok bontása, padlóburkolat bármely méretű kőagyag, mozaik vagy tört mozaik (NOVA) lapból",72.8,"m2",0,0,{"$f":"D3*F3","v":0},{"$f":"D3*G3","v":0}]
[]
[2,"42-000-2.2","Lapburkolatok bontása, fal-, pillér- és oszlopburkolat, bármely méretű mozaik, kőagyag és csempe",32.799999999999997,"m2",0,0,{"$f":"D5*F5","v":0},{"$f":"D5*G5","v":0}]
[]
[3,"42-000-3.4","Fa-, hézagmentes műanyag- és szőnyegburkolatok bontása, ",176.6,"m2",0,0,0,0]
[]
[4,"42-000-3.","Parketta kíméletes bontása, tisztítása, kötegelése visszaépítéshez",276,"m2",0,0,0,0]
[]
[5,"42-000-5.","Kőlap burkolatok bontása, lábazati falburkolat",41.6,"m2",0,0,0,0]
[]
[6,null,"Padlásburkoló tégla kíméletes bontása majd visszaépítése hőszigetelés után",386,"m2",0,0,0,0]
[]
[7,"42-011-1.1.1.1-0215098","Fal-, pillér és oszlop és padló burkolat hordozószerkezetének felületelőkészítése beltérben, tégla, beton és vakolt alapfelületen, felületelőkészítő alapozó és tapadóhíd felhordása egy rétegben Mapei primer G, nedvszívó alapfelület alapozására, Cikkszám:",292,"m2",0,0,0,0]
[null,null,"960163"]
[]
[8,"42-011-2.1.1.4.1-0311048","Padlóburkolat hordozószerkezetének felületelőkészítése beltérben, beton alapfelületen önterülő felületkiegyenlítés készítése 3 mm átlagos rétegvastagságban Mapei ultraplan eco aljzatkiegyenlítő",669,"m2",0,0,0,0]
[]
[9,"42-012-1.1.1.1.1.3-0313111","Fal-, pillér-, oszlopburkolat készítése beltérben, tégla, beton, vakolt alapfelületen, mázas kerámiával, kötésben vagy hálósan, 3-5 mm vtg. ragasztóba rakva, 1-10 mm fugaszélességgel, 25x25 -  40x40 cm közötti lapmérettel, 25x40 cm Zalakerámia  3500 ",139,"m2",0,0,0,0]
[null,null,"Ft/m2 lapárig MAPEI Adesilex P9 flexibilis ragasztóhabarcs, szürke, Ultracolor Plus 100 fugázó, fehér"]
[]
[10,"42-022-1.1.1.2.1.2-0313116","Padlóburkolat készítése, beltérben, tégla, beton, vakolt alapfelületen, gres, kőporcelán lappal, kötésben vagy hálósan, 3-5 mm vtg. ragasztóba rakva, 1-10 mm fugaszélességgel, 30x30 - 60x60 cm közötti lapmérettel, 30x60 cm padlólap, br 4500 Ft /m2",97.4,"m2",0,0,0,0]
[null,null,"lapárig MAPEI Superflex flexibilis csemperagasztó, szürke, Ultracolor Plus 100 fugázó, fehér"]
[]
[11,"42-022-","Padlóburkolat készítése, beltérben, tégla, beton, vakolt alapfelületen, mészkő lappal, kötésben vagy hálósan, 18 mm vtg. ragasztóba rakva, 1-10 mm fugaszélességgel, 45x60 - 60x60 cm közötti lapmérettel, ",59.7,"m2",0,0,0,0]
[]
[12,null,"Parkettaburkolat készítése ragasztott kivitelben, bontott anyag felhasználásával, új szegélylécezéssel, csiszolva, 3xi lakkozással",216,"m2",0,0,0,0]
[]
[13,null,"Parkettaburkolat készítése ragasztott kivitelben tölgy lécparketta, szegéllyel, csiszolva, 3xi lakkozással",164,"m2",0,0,0,0]
[]
[14,null,"Meglévő parkettapadozat javítása, csiszolva, 3xi lakkozva",30.2,"m2",0,0,0,0]
[]
[15,null,"Fapalló lépcsőfokok kivitelezés alatti védelme, felületi tisztítás,  lakkozás",13.2,"m2",0,0,0,0]
[]
[16,null,"Meglévő mészkőburkolat kivitelezés alatti védelme, felületi tisztítása, csiszolása",58.6,"m2",0,0,0,0]
[]
[17,"42-022-","Lábazatburkolat készítése, beltérben, mészkő lappal, egyenes, egysoros kivitelben,10 cm magasságig burkolattal megegyező lapanyag",48.4,"m",0,0,0,0]
[]
[18,"42-022-2.1.2.1.1-0313116","Lábazatburkolat készítése, beltérben, gres, kőporcelán lappal, egyenes, egysoros kivitelben, 3-5 mm ragasztóba rakva, 1-10 mm fugaszélességgel, 10 cm magasságig, 30x30 - 60×60 cm közötti lapmérettel, br 4500 Ft /m2 lapárig MAPEI Superflex flexibilis",76.3,"m",0,0,0,0]
[null,null,"csemperagasztó, szürke, Ultracolor Plus 100 fugázó, fehér"]
[]
[19,"42-041-3.2.2.1-0311048","Meglévő aljzat kiegyenlítése, ragasztott parketta, valamint rugalmas burkolat alá (nagy igénybevétel) ragasztóval szennyezett betonaljzat (cementesztrich) felület előkészítése, 3 mm vastagságban MUREXIN Extrém aljzatkiegyenlítő + MUREXIN D4 tapadóhíd",380,"m2",0,0,0,0]
[]
[20,null,"Műköbeton  felújítása",19.600000000000001,"m2",0,0,0,0]
[]
[21,"42-000-9","Kőburkolatok, mészkő profilos lábazati fejtagozat készítése 100x180 mm befoglaló mérettel",82.5,"fm",0,0,0,0]
[]
[22,"42-090-9.3","Mészkő táblás  lábazat beépítése szellőzőréses kivitelben, alsó megtámasztással",49.5,"m2",0,0,0,0]
[]
[null,null,"Munkanem összesen:",null,null,null,null,{"$f":"SUM(H3:H50)","v":0},{"$f":"SUM(I3:I50)","v":0}]

{"sheet":"Bádogozás","index":16,"n_rows":57,"n_cols":9,"rows_kept":57,"cut":false,"hidden":false,"merged":[]}
["Ssz.","Tételszám","Tétel szövege","Menny.","Egység","Anyag egységár","Díj egységre","Anyag összesen","Díj összesen"]
[1,"43-000-2","Fekvőeresz vagy párkányba süllyesztett csatornák bontása, 100 cm kiterített szélességig",117,"m",0,0,{"$f":"D2*F2","v":0},{"$f":"D2*G2","v":0}]
[]
[2,"43-000","Függőereszcsatorna bontása, 100 cm kiterített szélességig",29.4,"m",0,0,{"$f":"D4*F4","v":0},{"$f":"D4*G4","v":0}]
[]
[3,"43-000-5","Lefolyó csatorna bontása 50 cm kiterített szélességig",73.3,"m",0,0,0,0]
[]
[4,"43-000-7","Szegélyek, párkány könyöklő bontása, 100 cm kiterített szélességig",217,"m",0,0,0,0]
[]
[5,"43-000-8","Falfedések egy vagy két vízorros, hajlatbádog bontása,100 cm kiterített szélességig",29,"m",0,0,0,0]
[]
[6,"43-000-11","Tetőkibúvó ajtó vagy tetőablak bontása",3,"db",0,0,0,0]
[]
[7,"43-001-2.1.1-0149105","Sávos szalagfedések; Sima fémlemez fedés készítése lemezszalagból,kettős állókorcos kivitelben,horganyzott acél, színes műanyagbevonatú horganyzott acél,minősített ötvözött horganylemezből vagybevonatos ötvözött alumíniumlemezből, 30°-ig, 100 m2-ig, 550",39,"m2",0,0,0,0]
[null,null,"mm korctávolságig PREFALZ® alumínium szalag stukkó felülettel, fólia nélkül, 0,7x1000 mm, 1 m2 = 1,89 kg, standard színekben, 60 kg/tekercs"]
[]
[8,"43-001","LINDAB  LPA NORDIC cserepeslemez fedés ",80,"m2",0,0,0,0]
[]
[9,"43-002-1.2-0144003","Függőereszcsatorna szerelése, félkörszelvényű, bármilyen kiterített szélességben, színes műanyagbevonatú horganyzott acéllemezből LINDAB R 150 félkörszelvényű függőereszcsatorna horganyzott acél + műanyag bevonat, standard színben, Ksz: 33 cm",12.8,"m",0,0,0,0]
[]
[10,"43-002-1.7-0140002","Függőereszcsatorna szerelése, félkörszelvényű, bármilyen kiterített szélességben, horganyzott acéllemezből Függőereszcsatorna Ha 0,55, félkör szelvényű, Ksz: 33 cm",26.3,"m",0,0,0,0]
[]
[11,"43-002-1.7-","Függőereszcsatorna szerelése, félkörszelvényű, bármilyen kiterített szélességben, horganyzott acéllemezből Függőereszcsatorna Ha 0,55, félkör szelvényű, Ksz: 40 cm",7.9,"m",0,0,0,0]
[]
[12,"43-002-11.2-0144013","Lefolyócső szerelése kör keresztmetszettel, bármilyen kiterített szélességgel, színes műanyagbevonatú horganyzott acéllemezből LINDAB SRÖR-100 körszelvényű lefolyócső horg.acél + műanyagbevonat, standard színben, Ksz: 33 cm",6,"m",0,0,0,0]
[]
[13,"43-002-11.6-0140602","Lefolyócső szerelése kör keresztmetszettel, bármilyen kiterített szélességgel, horganyzott acéllemezből Horganyzott lefolyócső Ha 0,55, körszelvényű, Ksz: 33 cm",54.8,"m",0,0,0,0]
[]
[14,"43-002-11.6-0140603","Lefolyócső szerelése kör keresztmetszettel, bármilyen kiterített szélességgel, horganyzott acéllemezből Horganyzott lefolyócső Ha 0,55, körszelvényű, Ksz: 40 cm",13,"m",0,0,0,0]
[]
[15,"43-002-32.1.2-0140604","Fekvőereszcsatorna szerelése félkör kialakítású horganyzott acéllemezből, véglezárás, összefolyó, mozgóképes kapcsolatok beépítésével, 50 cm kiterített szélességben Fekvőereszcsatorna, félkör horganyzott acéllemezből, 0,6 mm vtg., Ksz: 50 cm",117,"m",0,0,0,0]
[]
[16,"43-003-1.1.3.3-0993020","Ereszszegély szerelése keményhéjalású tetőhöz, horganyzott acéllemezből, 76-125 cm kiterített szélességgel Ereszszegély LINDAB FOP tűzihorganyzott/Z 275, 0,5 mm vtg., Ksz: 100 cm",124,"m",0,0,0,0]
[]
[17,"43-003-2.3.1-0993005","Oromszegély szerelése, horganyzott acéllemezből, 33 cm kiterített szélességig Oromszegély LINDAB FOP tűzihorganyzott/Z 275, 0,5 mm vtg., Ksz: 25 cm",14.15,"m",0,0,0,0]
[]
[18,"43-003-4.1.3.1-0993007","Falszegély szerelése keményhéjalású tetőhöz, horganyzott acéllemezből, 33 cm kiterített szélességig Falszegély LINDAB FOP tűzihorganyzott/Z 275, 0,5 mm vtg., Ksz: 33 cm",40.799999999999997,"m",0,0,0,0]
[]
[19,"43-003-5.1.3.2-0993008","Kéményszegély szerelése keményhéjalású tetőhöz, horganyzott acéllemezből, 40 cm kiterített szélességgel Kéményszegély LINDAB FOP tűzihorganyzott/Z 275, 0,5 mm vtg., Ksz: 40 cm",25.8,"m",0,0,0,0]
[]
[20,"43-003-7.1.3.1-0993038","Hajlatbádogozás korcolt kivitelben, kiselemes vagy táblás tetőfedő rendszerhez, egyenes kivitelben, horganyzott acéllemezből, 50-65 cm kiterített szélességgel Hajlatbádog LINDAB FOP tűzihorganyzott/Z 275, 0,6 mm vtg., Ksz: 65 cm",16.5,"m",0,0,0,0]
[]
[21,"43-003-8.2.1-0993008","Ablak- vagy szemöldökpárkány horganyzott acéllemezből, 50 cm kiterített szélességig Ablakpárkány LINDAB FOP tüzihorganyzott acél, 0,5 mm vtg., Ksz: 50 cm",15.6,"m",0,0,0,0]
[]
[22,"43-003-9.2.1-0993248","Választópárkány fedése, bármilyen kiterített szélességgel, horganyzott acéllemezből, 65 cm kiterített szélességig Egyvízorros választópárkány LINDAB FOP tüzihorg. acél, 0,5 mm vtg., Ksz: 35 cm",19.100000000000001,"m",0,0,0,0]
[null,null,null,null,null,null,null,0,0]
[23,"43-003-9.2.1-0993253","Választópárkány fedése, bármilyen kiterített szélességgel, horganyzott acéllemezből, 100 cm kiterített szélességig Egyvízorros választópárkány LINDAB FOP tüzihorg. acél, 0,5 mm vtg., Ksz: 90 cm",28.1,"m",0,0,0,0]
[]
[24,"43-003-","Falfedés, bármilyen kiterített szélességgel, horganyzott acéllemezből, 100 cm kiterített szélességig 0,5 mm vtg., Ksz: 90 cm",8.4,"m",0,0,0,0]
[]
[25,"43-004-1.1-0113800","Tetőkibúvó szerelése, horganyzott acéllemezből, kéményhajlású tetőn Tetőkibúvó 0,65 Ha lemezből 50x60 cm",2,"db",0,0,0,0]
[]
[26,"43-004-","Tetőbevilágító szerelése, horganyzott acéllemezből, kéményhajlású tetőn  0,65 Ha lemezből 50x60 cm",1,"db",0,0,0,0]
[]
[27,"43-004-","Tetőbevilágító szerelése, horganyzott acéllemezből, kéményhajlású tetőn fakeretre rögzített halszemablak, eredetivel egyezően 0,65 Ha lemezből 50x60 cm",3,"db",0,0,0,0]
[]
[null,null,"Munkanem összesen:",null,null,null,null,{"$f":"SUM(H2:H56)","v":0},{"$f":"SUM(I2:I56)","v":0}]

{"sheet":"Asztalosszerkezetek elhelyezése","index":17,"n_rows":100,"n_cols":9,"rows_kept":100,"cut":false,"hidden":false,"merged":[]}
["Ssz.","Tételszám","Tétel szövege","Menny.","Egység","Anyag egységár","Díj egységre","Anyag összesen","Díj összesen"]
[]
[]
[1,"44-000-1.1","Fa nyílászáró szerkezetek bontása,  ajtó, ablak vagy kapu, 2,00 m2-ig",9.5,"m2",0,0,{"$f":"D4*F4","v":0},{"$f":"D4*G4","v":0}]
[]
[2,"44-000-1.2","Fa nyílászáró szerkezetek bontása,  ajtó, ablak vagy kapu, 2,01-4,00 m2 között",93,"m2",0,0,{"$f":"D6*F6","v":0},{"$f":"D6*G6","v":0}]
[]
[3,"44-000-","Fa nyílászáró szerkezetek bontása,  ajtók kíméletes bontása és betárolása",43,"m2",0,0,0,0]
[]
[4,"44-000-","Fa nyílászáró szerkezetek bontása,  fa ablakzsaluk  bontása ",4.9000000000000004,"m2",0,0,0,0]
[]
[5,"44-000-","Fa nyílászáró szerkezetek bontása,  ajtó, belső válaszfalak",40.200000000000003,"m2",0,0,0,0]
[]
[6,null,"Fa lambériaburkolat bontása mennyezetről",21,"m2",0,0,0,0]
[]
[7,"44-001-","Fa beltéri nyílászárók elhelyezése, 75-300 mm falvastagsághoz bontott  fafurnéros fa tok, lemezelt, rátétkazettázott, festett ajtólap,    75x210 cm, méretben KB2, KB8,9,10,11,12,13 alaprajzi jellel,szükség szerinti javítás, vasalatcsere maestro valentina ",9,"db",0,0,0,0]
[]
[8,"44-001-","Fa beltéri nyílászárók elhelyezése, 75-300 mm falvastagsághoz bontott  fafurnéros fa tok, lemezelt, rátétkazettázott, festett ajtólap,    90x210 cm, méretben KB4,  alaprajzi jellel,szükség szerinti javítás, vasalatcsere maestro valentina  ",1,"db",0,0,0,0]
[]
[9,"44-001-","Fa beltéri nyílászárók elhelyezése, 75-300 mm falvastagsághoz bontott, festett  fafurnéros fa tok, lemezelt, rátétkazettázott ajtólap,   100x210 cm, méretben KB14,  alaprajzi jellel,szükség szerinti javítás, vasalatcsere maestro valentina  ",1,"db",0,0,0,0]
[]
[10,"44-001-","Fa beltéri nyílászárók elhelyezése, 75-300 mm falvastagsághoz bontott  tölgyfurnéros fa tok, lemezelt, rátétkazettázott ajtólap,    100x210 cm, méretben KB1  alaprajzi jellel,szükség szerinti javítás, vasalatcsere maestro vasalat ",1,"db",0,0,0,0]
[]
[11,"44-001-","Fa beltéri nyílászárók elhelyezése, 75-300 mm falvastagsághoz bontott  tölgyfurnéros fa tok, lemezelt, rátétkazettázott ajtólap,    75x210 cm, méretben KB7  alaprajzi jellel, meglévő 100/210-es bontott ajtó átalakításával, maestro vasalat pinocció  ",1,"db",0,0,0,0]
[]
[12,"44-001-","Fa beltéri nyílászárók elhelyezése, 75-300 mm falvastagsághoz bontott  tölgyfurnéros fa tok, lemezelt, rátétkazettázott ajtólap,    100x210 cm, méretben KB6  alaprajzi jellel,szükség szerinti javítás, vasalatcsere maestro pinocció, akadálymentesítéshez behúzókarral ",1,"db",0,0,0,0]
[]
[13,"44-001-1.","Fa beltéri nyílászárók elhelyezése, 75-300 mm falvastagsághoz  meglévő beltéri belső ajtók megjelenésével azonos kialakítással, fa tok, lemezborított, rátétkazettás ajtólap ajtólap,maestro vasatacsalád 100/210 cm, konsz.1",7,"db",0,0,0,0]
[]
[14,"44-001-1.","Fa beltéri nyílászárók elhelyezése, 75-300 mm falvastagsághoz  meglévő beltéri belső ajtók megjelenésével azonos festett kialakítással, fa tok, lemezborított, rátétkazettás ajtólap ajtólap,maestro vasatacsalád, 180 fokkal kiforduló pántolással menekülési útvonalon,  100/210 cm, konsz.2",2,"db",0,0,0,0]
[]
[15,"44-001-1.","Fa kültéri homlokzati nyílászáró elhelyezése szerk. fal külső síkra, meglévő falnyílásba, négypontos zárral kialakított bejárati ajtó borított, hossztoldott borovi fenyő tokkal, felső vízvetővel, kifelé nyíló, menekülő ajtóként beépítve, hossztoldott borovi fenyő kazettázott ajtólap, 3db, 4/16/4mm hőszig üvegezett bevilágító ablakkazettával,  külső barna- belső fehér festett kivitelben, olajfékes, kártyás beléptetővel, biztonsági vasalattal 100/210 cm, konsz.3",1,"db",0,0,0,0]
[]
[16,"44-002-","Fa kültéri nyílászárók, hőszigetelt, fokozott légzárású pallótokos ablak elhelyezése meglévő falnyílásba, 30  cm széles belső könyöklődeszkával (szerelvényezéssel, illesztéssel), 4,00 m kerület felett, középen felnyíló alsó-felső szárnnyal, egy vizszintes tokosztóval,  szárnykeretben egy üvegosztóval. Külső szárny 3+6+3 mm Low-e hőszigetelő üvegezés, belső 4 mm-es síküvegezés Maestro antik vasalat pinocció kilincs, félfordító, ",3,"db",0,0,0,0]
[null,null,"festett, hossztoldott borovi fenyő,   külső barna, belső fehér mázolás . 90/165 cm        /konsz A1/"]
[]
[17,"44-002-","Fa kültéri nyílászárók, hőszigetelt, fokozott légzárású szélesitett pallótokos ablak elhelyezése  meglévő falnyílásba, 20 cm széles belső könyöklődeszkával (szerelvényezéssel, illesztéssel), 4,00 m kerület felett, középen felnyíló alsó-felső  szárnnyal, egy vizszintes tokosztóval, szárnykeretben egy üvegosztóval. Külső szárny 3+6+3 mm Low-e hőszigetelő üvegezés, belső 4 mm-es síküvegezés. Maestro antik vasalat, ",3,"db",0,0,0,0]
[null,null,"festett, hossztoldott borovi fenyő,   külső barna, belső fehér mázolás . 90/165 cm /konsz A2/"]
[]
[18,"44-002-1.3.2.5-0215395","Fa kültéri nyílászárók, hőszigetelt, fokozott légzárású ablak elhelyezése, előre kihagyott falnyílásba, (szerelvényezéssel, illesztéssel), 4,00 m kerület felett, felnyíló ablak, két rátét osztóval, belső 20 cm-es könyöklővel kívül barna, belül fehér festett, hossztoldott borovi fenyő,  U=1,0W/m2K",2,"db",0,0,0,0]
[null,null," hőszigetelt üvegezéssel 90/165 cm,                       konsz. /A 3/"]
[]
[19,"44-002-1.3.2.5-0215395","Fa kültéri nyílászárók, hőszigetelt, fokozott légzárású ablak elhelyezése, előre kihagyott falnyílásba, (szerelvényezéssel, illesztéssel), 4,00 m kerület felett, bukó-nyíló ablak, belső 20 cm-es könyöklővel,két vízszintes, egy föggőleges rátét osztással, kívül barna, belül fehér festett, hossztoldott 68 cm borovi fenyő,  U=1,0",3,"db",0,0,0,0]
[null,null,"W/m2K hőszigetelt üvegezéssel 90/130 cm, konsz. /A 4/"]
[]
[20,"44-002-","Fa kültéri nyílászárók, hőszigetelt,  pallótokos ablak elhelyezése meglévő falnyílásba, 33cm széles belső könyöklődeszkával (szerelvényezéssel, illesztéssel), 4,00 m kerület felett, középen felnyíló alsó-felső szárnnyal, egy vizszintes tokosztóval, alsó szárnykeret egy üvegosztóval. Belső szárny 4+16+4mm Low-e hőszigetelő üvegezés, Külső szárny falsíkon középen felnyíló zsaluszárny, eredetivel egyező három mezős zsaluosztással. Maestro antik vasalat, ",2,"db",0,0,0,0]
[null,null," mérettel és kialakítással   110/190 cm,                  /konsz. A 5/"]
[]
[21,"44-002-","Fa kültéri nyílászárók,pallótokos ablak elhelyezése meglévő falnyílásba, 15 cm széles belső könyöklődeszkával (szerelvényezéssel, illesztéssel), 4,00 m kerület felett, középen felnyíló szárnnyal, gumiprofil tömítéssel, szárnykeretben egy üvegosztóval. Külső szárny 4-16-4 mm Low-e hőszigetelő üvegezés, belső 4 mm-es síküvegezés,  Maestro antik vasalat, ",3,"db",0,null,0,0]
[null,null,"festett, hossztoldott borovi fenyő,   külső barna, belső fehér mázolás. Eredetivel megegyező méretrenddel és kialakítással 105/125 cm /konsz A7/"]
[]
[22,"44-002-","Fa kültéri nyílászárók,pallótokos ablak elhelyezése meglévő falnyílásba, 50 cm széles belső könyöklődeszkával (szerelvényezéssel, illesztéssel), 4,00 m kerület felett, középen felnyíló alsó-felső szárnnyal, egy vizszintes tokosztóval, szárnykeretben egy üvegosztóval. Külső szárny 3+6+3 mm Low-e hőszigetelő üvegezés, belső 4 mm-es síküvegezés Maestro antik vasalat, ",1,"db",0,0,0,0]
[null,null," 105x210cm, konsz.A8"]
[]
[22,"44-002-","Fa kültéri nyílászárók,kettős, kapcsolt gerébtokos ablak elhelyezése meglévő falnyílásba, rátétdíszes  belső könyöklődeszkával (szerelvényezéssel, illesztéssel), 4,00 m kerület felett, középen felnyíló alsó-felső szárnnyal, egy vizszintes tokosztóval, szárnykeretben egy üvegosztóval.Belső tokra bontott spaletta visszaépítendő javítás után Külső szárny 3+6+3 mm Low-e hőszigetelő üvegezés, belső 4 mm-es síküvegezés Maestro antik vasalat, ",6,"db",0,0,0,0]
[null,null," festett, hossztoldott borovi fenyő,  U=1,0 W/m2K hőszigetelt üvegezéssel 120 x 203cm, konsz. A9"]
[]
[23,"44-002-1.3.2.5-0215395","Fa kültéri nyílászárók, hőszigetelt, fokozott légzárású ablak elhelyezése, meglévő falnyílásba, (szerelvényezéssel, illesztéssel), 4,00 m kerület alatt, bukó-nyíló ablak, kívül barna, belül fehér festett, hossztoldott borovi fenyő,  U=1,0",2,"db",0,0,0,0]
[null,null,"W/m2K hőszigetelt üvegezéssel 55/70 cm, konsz. /A 10/"]
[]
[24,"44-002-1.3.2.5-0215395","Fa kültéri nyílászárók, hőszigetelt, fokozott légzárású ablak elhelyezése, meglévő falnyílásba, (szerelvényezéssel, illesztéssel), 4,00 m kerület alatt, bukó-nyíló ablak, kívül barna, belül fehér festett, hossztoldott borovi fenyő,  U=1,0",2,"db",0,0,0,0]
[null,null,"W/m2K hőszigetelt üvegezéssel 70/100 cm, konsz. /A 11/"]
[]
[25,"44-002","Fa kültéri nyílászárók, meglévő, megmaradó kapcsolt gerébtok javítva, szárnykeret cserével.gumitömítéssel középen felnyíló alsó-felső szárny, egy üvegosztóval, 3+12+3 mm Low-e hőszigetelő üvegezés,  Maestro antik vasalat, Belső szárny meglévő spaletta javítás utáni visszaépítése",8,"db",0,0,0,0]
[null,null,"festett, hossztoldott borovi fenyő,  105/175 cm, konsz. /A12/"]
[]
[26,"44-002","Fa kültéri nyílászárók, meglévő, megmaradó kapcsolt gerébtok javítva, szárnykeret cserével.gumitömítéssel középen felnyíló alsó-felső szárny, egy üvegosztóval, 3+12+3 mm Low-e hőszigetelő üvegezés,  Maestro antik vasalat, Belső szárny meglévő spaletta javítás utáni visszaépítése",7,"db",0,0,0,0]
[null,null,"festett, hossztoldott borovi fenyő,  10/190cm, konsz. /A13/"]
[]
[27,"44-002","Fa kültéri nyílászárók, meglévő, megmaradó kapcsolt gerébtok javítva, szárnykeret cserével.gumitömítéssel középen felnyíló alsó-felső szárny, egy üvegosztóval, 3+12+3 mm Low-e hőszigetelő üvegezés,  Maestro antik vasalat, Belső szárny meglévő spaletta javítás utáni visszaépítése konsz.A14",4,"db",0,0,{"$f":"D70*F70","v":0},{"$f":"D70*G70","v":0}]
[]
[28,"44-002-1.3.2.5-0215395","Fa kültéri nyílászárók, hőszigetelt, fokozott légzárású ablak javítása, új rátéttel6 mezőre osztás ",3,"db",0,0,0,0]
[]
[29,"44-005-2","WC előfal elhelyezése, BK LTT 24 mm HPL, konsz. VF1",3.15,"m2",0,0,0,0]
[]
[30,"44-005-2-0000001","WC előfal elhelyezése, BK LTT 24 mm HPL, konsz. VF2",3.15,"m2",0,0,0,0]
[]
[31,"44-005-2-0000001","WC elő- és oldalfal elhelyezése, BK LTT 24 mm HPL, konsz. VF3",8.1999999999999993,"m2",0,0,0,0]
[]
[32,"44-005-2-0000001","WC előlfal elhelyezése, BK LTT 24 mm HPL, konsz. VF4",4.4000000000000004,"m2",0,0,0,0]
[]
[33,"44-005-2-0000001","WC előlfal elhelyezése, BK LTT 24 mm HPL, konsz. VF5",2.2000000000000002,"m2",0,0,0,0]
[]
[34,"44-005-2-0000001","WC előlfal elhelyezése, BK LTT 24 mm HPL, konsz. VF6",3.8,"m2",0,0,0,0]
[]
[35,"44-001-5-0990138","Nyílászáró és falszerkezet közötti hézag tömítése poliuretán habbal, 0,0007 m3/m kikeményedett habtérfogattal, külső - belső oldalon Mester poliuretán hab, 0,75 l",270,"m",0,0,0,0]
[]
[36,null,"Meglévő ajtók szükség szerinti javítása és vasalatcsere ",5,"db",0,0,0,0]
[]
[37,null,"Meglévő, megmaradó pallótokos ablakok szükség szerinti javítása /A14 alaprajzi jelű/",5,"db",0,0,0,0]
[]
[]
[38,null,"Meglévő, megmaradó pallótokos ablakok szükség szerinti javítása, hőszigetelő üvegezés cseréje 4+16+4 mm síküvegre /A16 alaprajzi jelű/",2,"db",0,0,0,0]
[]
[]
[39,null,"Meglévő, megmaradó sofa rendszerű  ablakra üvegrátét készítése /15 alaprajzi jel/",3,"db",0,0,0,0]
[]
[40,null,"Bejárati nagykapu javítása:( plusz egy forgópánt beépítése felső harmadba Szily 3-ban",2,"db",0,null,0,0]
[]
[null,null,"Munkanem összesen:",null,null,null,null,{"$f":"SUM(H4:H99)","v":0},{"$f":"SUM(I4:I99)","v":0}]

{"sheet":"Lakatosszerkezetek elhelyezése","index":18,"n_rows":20,"n_cols":9,"rows_kept":20,"cut":false,"hidden":false,"merged":[]}
["Ssz.","Tételszám","Tétel szövege","Menny.","Egység","Anyag egységár","Díj egységre","Anyag összesen","Díj összesen"]
[]
[1,"45-005-2.3-0990136","Egyéb épületlakatos szerkezetek bontása és elhelyezése, zászlótartó ",4,"db",0,0,{"$f":"D3*F3","v":0},{"$f":"D3*G3","v":0}]
[]
[2,"45-001-31.1.2.1.1","Tűzgátló ajtóelem beépítése, sarok-, gipszkarton-, falazós-, blokktokkal, tömítőprofillal, tűzgátló kilincsgarnitúrával, önzáródó kivitelben, biztonsági csapokkal, porszórt alapozással, (RAL9002) kétszárnyú kivitelben, SR390 csukássorrend szabályozóval,",1,"db",0,0,{"$f":"D5*F5","v":0},{"$f":"D5*G5","v":0}]
[null,null,"Tűzgátló ajtó 1500/2100mm méret A2 EI 90 , rögzített ajtószárny pánikrudazattal konsz I."]
[]
[3,"45-","Ollószáras lehúzható padlásfeljáró FAKRO LSF 90x70 cm konsz II.",1,"db",0,0,0,0]
[]
[4,"45-","Koelner talpas oszlobefogó  faoszlopok rögzítéséreKoelner-D-talpas 150    konsz.III",10,"db",0,0,0,0]
[]
[5,"45-090-5.3","Kétszárnyú acélkapu javítása, és a régi festés lekaparása, mázolással 3500*2550 mm",1,"db",0,0,0,0]
[]
[6,null,"Nyílhegyes pálcás ablakrácsok bontása, szükség szerinti javítása visszaépítése 105/175 cm",12,"db",0,0,0,0]
[]
[7,null,"Pálcás osztású korlát szükség szerinti javítása",5.3,"fm",0,0,0,0]
[]
[8,null,"Műemléki hófogók elhelyezése hódfarkú cserépfedéshez két sorban",396,"db",0,0,0,0]
[]
[null,null,"Munkanem összesen:",null,null,null,null,{"$f":"SUM(H3:H19)","v":0},{"$f":"SUM(I3:I19)","v":0}]

{"sheet":"Felületképzés (festés, mázolás,","index":19,"n_rows":28,"n_cols":9,"rows_kept":28,"cut":false,"hidden":false,"merged":[]}
["Ssz.","Tételszám","Tétel szövege","Menny.","Egység","Anyag egységár","Díj egységre","Anyag összesen","Díj összesen"]
[]
[1,"47-000-1.3.1.1","Belső festéseknél felület előkészítése, részmunkák; vizes diszperziós falfesték lekaparása, bármilyen padozatú helységben, tagolatlan felületen",2300,"m2",0,0,{"$f":"D3*F3","v":0},{"$f":"D3*G3","v":0}]
[]
[2,"47-000-1.21.2.1.1.1-0213262","Belső festéseknél felület előkészítése, részmunkák; glettelés, műanyag kötőanyagú glettel (simítótapasszal), vakolt felületen, bármilyen padozatú helyiségben, tagolatlan felületen HENKEL Ceresit Cereplaszta, beltéri glett, Cikkszám: 141 414",2920,"m2",0,0,{"$f":"D5*F5","v":0},{"$f":"D5*G5","v":0}]
[]
[3,"47-011-15.1.1.1-0159456","Diszperziós festés műanyag bázisú vizes-diszperziós  fehér vagy gyárilag színezett festékkel, új vagy régi lekapart, előkészített alapfelületen, vakolaton, két rétegben, tagolatlan sima felületen Caparol Deckweiss Top diszperziós belső falfesték,",2920,"m2",0,0,0,0]
[]
[4,"47-013-5.","KEIM Contact-Plus/granittal töltött struktúra kiegyenlítő homlokzatfestés készítése 2 rétegben- KEM Contact-Plus töltött alapozó KEIM granital festék két rétegben I.ács festések, szilikon kötőanyagú, fehér vagy színes homlokzatfestés, megfelelően előkészített alapfelületen, vakolaton, két rétegben, egy vagy több színben, tagolt sima felületen, alapozással együtt Keim9091 színben",278,"m2",0,0,0,0]
[]
[5,"47-013-5","KEIM Contact-Plus/granittal töltött struktúra kiegyenlítő homlokzatfestés készítése 2 rétegben- KEM Contact-Plus töltött alapozó KEIM granital festék két rétegben I.ács festések, szilikon kötőanyagú, fehér vagy színes homlokzatfestés, megfelelően előkészített alapfelületen, vakolaton, két rétegben, egy vagy több színben, tagolt sima felületen, alapozással együtt Keim9092 színben",357,"m2",0,0,0,0]
[]
[6,"47-013-5","KEIM Contact-Plus/granittal töltött struktúra kiegyenlítő homlokzatfestés készítése 2 rétegben- KEM Contact-Plus töltött alapozó KEIM granital festék két rétegben I.ács festések, szilikon kötőanyagú, fehér vagy színes homlokzatfestés, megfelelően előkészített alapfelületen, vakolaton, két rétegben, egy vagy több színben, tagolt sima felületen, alapozással együtt Keim9310színben",367,"m2",0,0,0,0]
[]
[5,"47-013-5","KEIM Contact-Plus/granittal töltött struktúra kiegyenlítő homlokzatfestés készítése 2 rétegben- KEM Contact-Plus töltött alapozó KEIM granital festék két rétegben I.ács festések, szilikon kötőanyagú, fehér vagy színes homlokzatfestés, megfelelően előkészített alapfelületen, vakolaton, két rétegben, egy vagy több színben, tagolt sima felületen, alapozással együtt Keim 9307színben",125,"m2",0,0,0,0]
[]
[7,null,"Régi olajfesték eltávolítása fa ablak és ajtószerkezetekről, spalettákról,  alapozás, 2x-i festés, lakkozás  régi faszerkezeteken fehér színben",313,"m2",0,0,0,0]
[]
[8,null,"Nyílászárók festése, új faszerkezetű ajtókon, ablakokon  alapozás, 2x-i fedőmázolás, lakkozás  új faszerkezeteken, fehér színben",228,"m2",0,0,0,0]
[]
[9,null,"Felület festése nyílászárók külső mázolása középbarna színbe alapozás, 2x-i festés, lakkozás ",197,"m2",0,0,0,0]
[]
[10,null,"Rácsok, korlátokról festék eltávolítása, rozsdamentesítés, új mázolás sötétbarna és fekete színben.",10.6,"m2",0,0,0,0]
[]
[11,"K","Épület finomtakarítása ",680,"m2",0,0,0,0]
[]
[]
[null,null,"Munkanem összesen:",null,null,null,null,{"$f":"SUM(H3:H27)","v":0},{"$f":"SUM(I3:I27)","v":0}]

{"sheet":"Szigetelés","index":20,"n_rows":32,"n_cols":9,"rows_kept":32,"cut":false,"hidden":false,"merged":[]}
["Ssz.","Tételszám","Tétel szövege","Menny.","Egység","Anyag egységár","Díj egységre","Anyag összesen","Díj összesen"]
[1,"48-000-3.1","Sávosan vagy pontonként hegesztett, olvasztott vagy ragasztott bitumenes lemez szigetelés, páratechnikai vagy párazáró réteg bontása, egy réteg lemez esetén, vízszintes felületről előir.",40,"m2",0,0,{"$f":"D2*-F2","v":0},{"$f":"D2*G2","v":0}]
[]
[2,"48-002-1.3.1.2-0099009","Talajnedvesség elleni szigetelés; Padlószigetelés, egy rétegben, minimum 4,0 mm vastag elasztomerbitumenes (SBS modifikált vagy SBS/oxidált duo) lemezzel, aljzathoz foltonként vagy sávokban olvasztásos ragasztással, átlapolásoknál teljes felületű",144,"m2",0,0,{"$f":"D4*-F4","v":0},{"$f":"D4*G4","v":0}]
[null,null,"hegesztéssel fektetve VILLAS EO-G 4 F/K Extra, üvegszövet hordozórétegű, 4 mm vastag, SBS-oxid DUO lemez"]
[]
[3,"48-007-41.1.1.1.2-0090756","Födém; Padló hőszigetelő anyag elhelyezése, vízszintes felületen, aljzatbeton alá, úsztató rétegként, expandált polisztirolhab lemezzel Austrotherm 100   lemez 50 mm, λD =0,032 (W/mK) 1000*500 mm lemezméret, egyenes él",36,"m2",0,0,0,0]
[]
[4,"48-007-41.1.1.1.2-0090756","Födém; Padló hőszigetelő anyag elhelyezése, vízszintes felületen, aljzatbeton alá, úsztató rétegként, AT-M100  lemez70 mm, λD =0,032 (W/mK) 1000*500 mm lemezméret, egyenes él",106,"m2",0,0,0,0]
[]
[5,"48-007-41.1.1.1.2-0090762","Födém; Padló hőszigetelő anyag elhelyezése, vízszintes felületen, padlásfödémre, AT-M100 polisztirolhab lemez 250 mm, λD =0,032 (W/mK) 1000*500 mm lemezméret, egyenes él",386,"m2",0,0,0,0]
[]
[6,"48-007-41.1.1.1.2-0113220","Födém; Padló hőszigetelő anyag elhelyezése, vízszintes felületen, aljzatbeton alá, úsztató rétegként, expandált polisztirolhab lemezzel AUSTROTHERM lépéshang-szigetelő lemez, AT-L2 1000x500x40 mm",214,"m2",0,0,0,0]
[]
[7,null,"Födém: isower szálas hőszigetelés elhelyezése szarufák közé alá, kishajlású tetőfödémbe 10+15 cm vastagságban",76,"m2",0,0,0,0]
[]
[8,"48-00","HAMNAP Isodrén lemez fektetése vizszintes döngölt kavicsfelületre",106,"m2",0,0,0,0]
[]
[9,"48-002-1.39.1.1-0113544","PE technológiai és elválasztó szigetelés födémbe",740,"m2",0,0,0,0]
[]
[10,"48-002-1.39.1.1-0113544","Párazáró védő réteg hőszigetelésen, 10 cm laza átlapolással fektetve, vízszintes felületen, egy réteg minimum 0,09 mm vastag polietilén fólia AUSTROTHERM polietilén fólia, 0,09 mm vastagságú, 2 m szélességű",632,"m2",0,0,0,0]
[]
[11,"48-012","Szigetelőréteg  függőleges felületen, egy rétegben, KEIM Porosan Dichtungsschlamme kenhető cementbázisú habarcsból 2 mm vtg-ban felhordva  30 cm magasságban lábazati faltőnél",25.3,"m2",0,0,0,0]
[]
[12,"48-012-2.1-0315201","Szigetelőhabarcs vagy műanyagbázisú bevonatszigetelés aljzatának alapozása nedvszívó felületeknél, vízszintes vagy függőleges felületen, egy rétegben, tapadóhíddal, vizes diszperziós bázisú mélyalapozóval Schomburg ASO-Unigund-GE készre kevert",17.8,"m2",0,0,0,0]
[null,null,"oldószermentes alapozó"]
[]
[13,"48-012-5.1-0315204","Talajnedvesség elleni falszigetelés függőleges felületen, bevonatszigeteléssel két rétegben, minimum 2,0 mm száraz rétegvastagságú egykomponensű szigetelőhabarccsal, glettvassal vagy simítóval felhordva Schomburg AQUAFIN-1K vízszigetelő cementhabarcs",14.5,"m2",0,0,0,0]
[]
[14,"48-012-6.1-0315204","Talajnedvesség elleni padlószigetelés bevonatszigeteléssel két rétegben, minimum 2,0 mm száraz rétegvastagságú egykomponensű szigetelőhabarccsal, glettvassal vagy simítóval felhordva Schomburg AQUAFIN-1K vízszigetelő cementhabarcs",3.3,"m2",0,0,0,0]
[]
[null,null,"Munkanem összesen:",null,null,null,null,{"$f":"SUM(H2:H31)","v":0},{"$f":"SUM(I2:I31)","v":0}]

{"sheet":"Beltéri beépített berendezési ","index":21,"n_rows":24,"n_cols":9,"rows_kept":24,"cut":false,"hidden":false,"merged":[]}
["Ssz.","Tételszám","Tétel szövege","Menny.","Egység","Anyag egységár","Díj egységre","Anyag összesen","Díj összesen"]
[]
[1,"50-000","Laminált lapos konyhabútor felső szekrény bontása ",5.0999999999999996,"fm",0,0,{"$f":"D3*F3","v":0},{"$f":"D3*G3","v":0}]
[]
[2,"50-000","Laminált lapos konyhabútor alsó szekrény bontása ",5.0999999999999996,"fm",0,0,{"$f":"D5*F5","v":0},{"$f":"D5*G5","v":0}]
[]
[3,"50-001","Konyhaszekrény alsó elem  beépítése laminált bútorlemezből, 210/90/60+ 140x60x90 /konsz B1/",1,"db",0,0,0,0]
[]
[4,"50-001","Konyhaszekrény felső elem szekrény beépítése laminált bútorlemezből, 210/60/35 /konsz B1/",1,"db",0,0,0,0]
[]
[5,"50-001","Konyhaszekrény alsó elem  beépítése laminált bútorlemezből, 220/90/60 /konsz B2/",1,"db",0,0,0,0]
[]
[6,"50-001","Konyhaszekrény felső elem szekrény beépítése laminált bútorlemezből, 220/60/35 /konsz B2/",1,"db",0,0,0,0]
[]
[7,"50-001","Konyhaszekrény alsó elem  beépítése laminált bútorlemezből, 220/90/60 /konsz B3/",1,"db",0,0,0,0]
[]
[8,"50-001","Konyhaszekrény felső elem szekrény beépítése laminált bútorlemezből, 220/60/35 /konsz B3/",1,"db",0,0,0,0]
[9,null,"Mosdó beépítése konzolosan rögzített         125x4 cm-es vízzáró munkapultba /B4 konsz/",1,"db",0,0,0,0]
[]
[10,"50-001-1.1.1.9.1","Nyílóajtós (2 cm lapvastagságú) szekrény beépítése laminált bútorlemez keretre, 60 cm mélységig, maximum 320 cm magasságig,  175 cm szélesség bent, laminált felülettel, középnyíló+nyíló alsó-felső ajtóval, alsó ajtólapokon alsó-felső alu szellőzőráccsal, egyszárnyú elemben 4 polccal laminált bútorlemezből, 175x320x60 cm                      /konsz 5/",1,"db",0,0,0,0]
[]
[11,"50-001-1.1.1.9.1","Nyílóajtós (2 cm lapvastagságú) szekrény beépítése laminált bútorlemez keretre, 60cm mélységig, maximum 320 cm magasságig,  240 cm szélességben, laminált felülettel, két középnyíló alsó-felső ajtóval, alsó ajtólapokon alsó-felső alu szellőzőráccsal,  egyik elemben 4 db osztópolccal, laminált bútorlemezből, 240x320x60 cm                      /konsz 6/",1,"db",0,0,0,0]
[]
[null,null,"Munkanem összesen:",null,null,null,null,{"$f":"SUM(H3:H23)","v":0},{"$f":"SUM(I3:I23)","v":0}]

{"sheet":"Útburkolat készítése","index":22,"n_rows":13,"n_cols":9,"rows_kept":13,"cut":false,"hidden":false,"merged":[]}
["Ssz.","Tételszám","Tétel szövege","Menny.","Egység","Anyag egységár","Díj egységre","Anyag összesen","Díj összesen"]
[]
[1,"21- 002-0.0.1.4. ","Humuszos termőréteg, termőföld leszedése, terítése gépi erővel, 18%-os terephajlásig, bármilyen talajban, szállítással , 50,1-200,0 m között előirányzat",88,"m3",0,0,{"$f":"D3*F3","v":0},{"$f":"D3*G3","v":0}]
[]
[2,"21-004-5.1.2.1","Tükörkészítés tömörítés nélkül, sík felületen gépi erővel, kiegészítő kézi erővel talajosztály: V-VI.",66,"m3",0,0,{"$f":"D5*F5","v":0},{"$f":"D5*G5","v":0}]
[]
[3,"62-002-2","Kiemelt szegély készítése, alapárok kiemelésével, beton alapgerendával és megtámasztással, hézagolással előregyártott szegélykőből , 100 cm hosszú elemekből, LEIER Qartz kerti szegélykő, 100x5x25 cm, szürke, Cikkszám: HUTX5164 C12/15-XN(H) földnedves",109,"fm",0,0,0,0]
[]
[4,"62-003","Térburkolat készítése rendszerkövekből 6 cm vastagságban meglévő, bontott térkő felhasználásával, CKT betonba rakva, hézagolással",440,"m2",0,0,0,0]
[]
[5,"62-003-6","Térburkolathoz fagyálló teherhordó alap készítése, 20 cm vastagságban, Nyers homokos kavics, NHK 0/125 Q-T, Püspökmolnári előirányzat",88,"m3",0,0,0,0]
[]
[null,null,"Munkanem összesen:",null,null,null,null,{"$f":"SUM(H3:H12)","v":0},{"$f":"SUM(I3:I12)","v":0}]